Workbook

Sheet Accueil
F2: EXERCICES DE SUIVI DU PACC 2013-2020
F5: 2018-06-01
B10: Bienvenue dans votre fiche de suivi du Plan d'action 2013-2020 sur les changements climatiques!
B13: Indications spécifiques à l'exercice de juin 2018
B14: Date limite : | C14: 2018-06-22
B15: → Les informations financières doivent être en date du 2018-03-31
B16: → Veuillez utiliser l'outil de validation sur votre fiche avant de la retourner. Un bouton à cet effet a été ajouté dans les différents onglets.
B17: → Veuillez garder la fiche en format xlsm afin de pouvoir profiter des nouveaux outils conviviaux.
B18: → Besoin d'assistance? Veuillez écrire à l'adresse suivante en spécifiant votre question et vos coordonnées :
B19: direction.executive@cgfv.gouv.qc.ca
B20: → Avant de débuter l'exercice, veuillez vérifier et compléter au besoin l'information contenue dans la page d'accueil.
B21: → Toute information confidentielle, en vertu d'un contrat ou d'une entente, doit être saisie en bleu.
B22: → La fiche de suivi en format Word doit également être mise à jour. Si aucune modification n'est requise, il est néanmoins nécessaire de mettre à jour les sections Date de mise à jour de la fiche se situant au haut et au bas de la fiche.
B23: → De nouvelles informations sont à saisir à l'onglet Indicateurs quantitatifs, suite aux ajustements apportés à celui-ci.
B24: → Veuillez préciser à la page d'accueil le programme rattaché à l'action, lorsqu'applicable. Le cas échéant, veuillez transmettre le cadre normatif officiel du programme au moment de la retransmission de la fiche de suivi.
B25: → ATTENTION! Copier-coller des informations à partir d'un document Word verrouille les cellules concernées. Pour pouvoir à nouveau écrire et modifier le format de ces cellules, veuillez fermer et ouvrir à nouveau la fiche.
B26: → ATTENTION! Les cellules contenant du texte sont limitées à 250 caractères. Les textes trop longs de votre ancienne fiche sont écrits en rouge puisqu'ils ont été tronqués. Veuillez reformuler ces instances.
B27: à ATTENTION! Il est important de remplir la colonne Coût/tonne estimé de l'onglet Détail des projets lorsqu'applicable
B50: Avant de commencer, veuillez vérifier et corriger au besoin les informations indiquées dans l'encadré ci-dessous:
B52: Priorité : | D52: 20 | E52: Favoriser les énergies renouvelables et l'efficacité énergétique dans les bâtiments résidentiels, commerciaux et institutionnels
B53: Action : | D53: 20.1 | E53: Conversion et efficacité énergétique dans les bâtiments commerciaux et institutionnels
B54: Sous-action :
B55: Libellé usuel : | D55: 20.1 | E55: Conversion et efficacité énergétique dans les bâtiments commerciaux et institutionnels (Écoperformance)
B56: Programme : | D56: Écoperformance
B57: Nom du programme :
B58: Statut de l'action : | D58: en cours
B59: Raison du statut de l'action :
B63: Mise à jour de la fiche le : | D63: 2018-07-30
B66: Ministère porteur : | D66: TEQ | F66: Chargé de projet : | H66: Nadia Lalancette | K66: Part de financement par le PACC : | M66: Variable
B67: Responsable ministériel : | D67: Dominique Deschênes | K67: Date de lancement de l'action : | M67: 2013-10-28
B68: Direction responsable : | D68: DG opérations et innovation | F68: Budget 2013-2020 (M$) : | H68: 67 | K68: Date de fin de l'action : | M68: 2017-12-31
B73: Personne ressource pour leCGFV : | E73: Nadia Lalancette | J73: Tél. : | M73: 418-627-6379 (8014)
B74: Fiche validée au CGFV le: | D74: 2018-09-21

Sheet DGRFM COF
G2: Bienvenue dans votre fiche de suivi du PACC 2013-2020!
P3: Juillet 2018
B4: Priorité : | D4: 20
B5: Action: | D5: 20.1 | E5: 20.1 Conversion et efficacité énergétique dans les bâtiments commerciaux et institutionnels
B6: Sous-action: | D6: 20.1
B7: Numéro de programme | D7: 16225 | E7: 52187 | F7: PSA | H7: =P7 -> 0 | J7: Projet
B8: Mise à jour de la fiche le: | D8: 2018-07-20
B9: Ministère porteur: | D9: MERN
B10: Responsable ministériel: | D10: Dominique Deschenes | R10: Date de lancement: | S10: 2013-10-23
B11: Chargé de projet: | D11: Nadia Lalancette | F11: Budget 2013-2020: | P11: 67000000 | R11: Date de fin: | S11: 2020-12-31
B12: Unité Administrative (UA) | D12: 1810000 | E12: Unité administrative générique
B13: Personne ressource pour la DGRFM: | D13: Marie-Hélène Pelletier
B22: SECTION 1 - SOMMAIRE - CONSOLIDATION DES ORGANISMES ET DES FONDS (COF) | H22: Combinaison comptable budget | O22: 2013-2014 | P22: 2014-2015 | Q22: 2015-2016 | R22: 2016-2017 | S22: 2017-2018 | T22: 2018-2019 | U22: 2019-2020 | V22: 2020-2021 | W22: 2021-2022 | X22: 2022-2023 | Y22: TOTAL
O23: Réel | P23: Réel | Q23: Réel | R23: Réel | S23: Réel | T23: Prévu | U23: Prévu | V23: Prévu | W23: Prévu | X23: Prévu
B24: Dépenses
B25: 1.1 Rémunération | H25: =IF($D$4="Fonds de protection de l'environnement et des milieux hydriques",784,836) -> 836 | I25: =IF(B25="1.2 Contribution de l'employeur","1810010",$D$12) -> 1810000 | J25: =500012 -> 500012 | K25: =IF($B$24="Revenu",0,900) -> 900 | L25: =IF(OR(B25="1.1 Rémunération",B25="1.2 Contribution de l'employeur",B25="1.3 Immobilisations",B25="1.4 Fonctionnement",B25="1.6 Amortissement"),$D$7,$E$7) -> 16225 | M25: =IF($P$7="",1000000,$P$7) -> 1000000 | N25: =IF($L$7="",100000000,$L$7) -> 100000000 | O25: 164586 | P25: 125525.57 | Q25: 176492.73 | R25: 126953.94 | S25: 423290.79 | T25: =470914+458242 -> 929156 | U25: =475624+462824 -> 938448 | V25: =484660+471618 -> 956278 | W25: 478692 | X25: 0 | Y25: =SUM(O25:X25) -> 4319423.03
B26: 1.2 Contribution de l'employeur | H26: =IF($D$4="Fonds de protection de l'environnement et des milieux hydriques",784,836) -> 836 | I26: =IF(B26="1.2 Contribution de l'employeur","1810010",$D$12) -> 1810010 | J26: 501002 | K26: =IF($B$24="Revenu",0,900) -> 900 | L26: =IF(OR(B26="1.1 Rémunération",B26="1.2 Contribution de l'employeur",B26="1.3 Immobilisations",B26="1.4 Fonctionnement",B26="1.6 Amortissement"),$D$7,$E$7) -> 16225 | M26: 1000000 | N26: =IF($L$7="",100000000,$L$7) -> 100000000 | O26: 0 | P26: 32829.14 | Q26: 20455.01 | R26: 14720.88 | S26: 36587.12 | T26: =84764+82484 -> 167248 | U26: =85612+83308 -> 168920 | V26: =87238+84892 -> 172130 | W26: 86164 | X26: 0 | Y26: 699054.15
B27: 1.3 Immobilisations | H27: 836 | I27: 1810000 | J27: 180710 | K27: 900 | L27: 16225 | M27: 1000000 | N27: 100000000 | O27: 0 | P27: 0 | Q27: 0 | R27: 0 | S27: 0 | T27: 0 | U27: 0 | V27: 0 | W27: 0 | X27: 0 | Y27: 0
B28: 1.4 Fonctionnement | H28: 836 | I28: 1810000 | J28: 510012 | K28: 900 | L28: 16225 | M28: 1000000 | N28: 100000000 | O28: 0 | P28: 176.19 | Q28: 35.97 | R28: 1578.15 | T28: 100000 | U28: 100000 | V28: 38150 | W28: 0 | X28: 0 | Y28: 239940.31
B29: 1.5 Subventions et autres transferts de fonds | H29: 836 | I29: 1810000 | J29: 0 | K29: 900 | L29: 52187 | M29: 1000000 | N29: 100000000 | O29: =O30+O31 -> 0 | P29: =P30+P31 -> 3720090.15 | Q29: =Q30+Q31 -> 7068520.77 | R29: 8432198.68 | S29: 8848754.5 | T29: 19648224 | U29: 18728732 | V29: 18654415 | W29: 10987469 | X29: 0 | Y29: 96088404.1
B30: 1.5.1 - Inclus au périmètre comptable (apparentés) | H30: 836 | I30: 1810000 | J30: 624002a | K30: 900 | L30: 52187 | M30: 1000000 | N30: 100000000 | O30: 0 | P30: 0 | Q30: 0 | R30: 0 | S30: 0 | T30: 0 | U30: 0 | V30: 0 | W30: 0 | X30: 0 | Y30: 0
B31: 1.5.2 - Hors périmètre comptable (non apparentés) | H31: 836 | I31: 1810000 | J31: 624002na | K31: 900 | L31: 52187 | M31: 1000000 | N31: 100000000 | O31: 0 | P31: 3720090.15 | Q31: 7068520.77 | R31: 8432198.68 | S31: 8848754.5 | T31: 19648224 | U31: 18728732 | V31: 18654415 | W31: 10987469 | X31: 0 | Y31: 96088404.1
B32: TOTAL | O32: =O25+O26+O27+O28+O29 -> 164586 | P32: =P25+P26+P27+P28+P29 -> 3878621.05 | Q32: =Q25+Q26+Q27+Q28+Q29 -> 7265504.48 | R32: =R25+R26+R27+R28+R29 -> 8575451.65 | S32: =S25+S26+S27+S28+S29 -> 9308632.41 | T32: 20844628 | U32: =U25+U26+U27+U28+U29 -> 19936100 | V32: 19820973 | W32: 11552325 | X32: =X25+X26+X27+X28+X29 -> 0 | Y32: 101346821.6
B33: Réservé au MDDELCC- DGRFM:
B34: 1.6 Amortissement | H34: 836 | I34: 1810000 | J34: 612200 | K34: 900 | L34: 16225 | M34: =IF($P$7="",1000000,$P$7) -> 1000000 | N34: 100000000 | R34: 0 | Y34: =SUM(P34:X34) -> 0
R37: 2016-2017 | S37: 2017-2018 | T37: 2018-2019 | U37: 2019-2020 | V37: 2020-2021 | W37: 2021-2022
B38: Taux annuel de contribution de l'employeur (%) | R38: 0.123 | S38: 0.123
B40: Instructions spécifiques à l'exercice de juillet 2018
B41: Date limite: | C41: 2018-07-20
B42: - Les prévisions doivent tenir compte de votre capacité réelle de mise en œuvre des actions
B43: - Veuillez réviser et compléter les cases jaunes
B44: - Gardez la fiche en format excel
B45: - Pour toutes questions en cours d'exercice, veuillez écrire un courriel à l'adresse suivante: pierre-michel.brassard-lapointe@mddelcc.gouv.qc.ca spécifiant la question et le numéro de téléphone auquel nous pouvons vous rejoindre pour y répondre

Sheet Feuil1 (hidden)

Sheet Utilitaire (hidden)
B3: Mot de passe: | C3: !1320PACC | D3: Fiche verrouillée: | E3: Oui - diffusion en ligne
B4: Fiche validée: | C4: Non
B5: GES attendu: | C5: Oui
B6: Feuille accueil complètement remplie: | C6: Non | D6: Exercice de suivi: | E6: 2017-12-01
B7: Statut action: | C7: =Accueil!D58 -> en cours
B8: Feuille Utilitaire visible: | C8: Non | D8: Titre des Onglets: | E8: PLAN D'ACTION 2013-2020 SUR LES CHANGEMENTS CLIMATIQUES
B9: Dernière ligne de la zone de défilement de l'onglet détail des projets: | C9: 682
B10: nombre d'indicateurs approuvés: | C10: 6
B11: Secteur: | C11: PACC 2013-2020
B12: Numéro de séquence de l'action: | C12: 20.01
B15: Listes Déroulantes
B16: détail des projets | G16: indicateurs quantitatifs | H16: DRFM COF | I16: Accueil
B17: Région Administrative | C17: Statut | D17: Classification | E17: Type d'émissions | F17: Info GES | G17: Type d'indicateur | H17: Exercice de suivi | I17: Statut de l'action | J17: Programmes | K17: Fiche verrouillée
B18: 99-toutes les régions | C18: AC-Actif | D18: SU-Subvention | E18: QC-Québec | F18: Oui | G18: minimum à atteindre | H18: 2013-2014-1 | I18: non démarrée | J18: Non applicable | K18: Oui - partenaire
B19: 01-Bas-Saint-Laurent | C19: TE-Terminé | D19: CF-Contrat fonctionnement | E19: HQ-Hors-Québec | F19: Non | G19: maximum à ne pas dépasser | H19: 2013-2014-2 | I19: en élaboration | J19: Autre programme | K19: Oui - diffusion en ligne
B20: 02-Saguenay- Lac-Saint-Jean | C20: AT-En attente | D20: CI-Contrat immobilisation | E20: ND-Non distingué | G20: binaire | H20: 2014-2015-1 | I20: en cours | J20: Action-Climat Québec | K20: Non - BGFV
B21: 03-Capitale-Nationale | C21: SU-Suspendu | D21: CP-Contrat service professionnel | H21: 2014-2015-2 | I21: terminée | J21: Biomasse forestière résiduelle
B22: 04-Mauricie | C22: AN-Annulé | D22: CT-Contrat service technique | H22: 2015-2016-1 | I22: en suspens | J22: Branché au travail
B23: 05-Estrie | C23: AB-Abandonné | D23: PI-Projet à l'interne | H23: 2015-2016-2 | I23: abandonnée | J23: Climat-municipalités
B24: 06-Montréal | D24: AU-Autre | H24: 2016-2017-1 | J24: ClimatSol-Plus
B25: 07-Outaouais | H25: 2016-2017-2 | J25: Écocamionnage
B26: 08-Abitibi-Témiscamingue | H26: 2017-2018-1 | J26: Écoperformance
B27: 09-Côte-Nord | H27: 2017-2018-2 | J27: PADTC - Programme d'aide au développement du transport collectif
B28: 10-Nord-du-Québec | H28: 2018-2019-1 | J28: PAGASTC - Programme d’aide gouvernementale à l’amélioration des services de transport en commun
B29: 11-Gaspésie-Iles-de-la-Madeleine | H29: 2018-2019-2 | I29: Part de financement par le PACC | J29: PAGTCP - Programme d’aide gouvernementale au transport collectif des personnes
B30: 12-Chaudières-Appalaches | H30: 2019-2020-1 | I30: Variable | J30: PAGTCR - Programme d'aide gouvernementale au transport collectif régional
B31: 13-Laval | H31: 2019-2020-2 | I31: =10 & " %" -> 10 % | J31: PETMAF - Programme d'aide à l'amélioration de l'efficacité du transport maritime, aérien et ferroviaire en matière de réduction des émissions de GES
B32: 14-Lanaudière | H32: 2020-2021-1 | I32: =20 & " %" -> 20 % | J32: PREGTI - Programme visant la réduction des émissions de GES par le développement du transport intermodal
B33: 15-Laurentides | H33: 2020-2021-2 | I33: =30 & " %" -> 30 % | J33: Prime-Vert
B34: 16-Montérégie | H34: 2021-2022-1 | I34: =40 & " %" -> 40 % | J34: Programme d’aide gouvernementale transitoire en matière de transport routier des personnes
B35: 17-Centre-du-Québec | H35: 2021-2022-2 | I35: =50 & " %" -> 50 % | J35: Programme de compostage pour petites municipalités
H36: 2022-2023-1 | I36: =60 & " %" -> 60 % | J36: Programme de coopération climatique internationale
H37: 2022-2023-2 | I37: =70 & " %" -> 70 % | J37: Programme de soutien à des projets de démonstration en transport collectif électrique
H38: 2023-2024-1 | I38: =80 & " %" -> 80 % | J38: Programme de soutien à l'intégration de l'adaptation aux changements climatiques à la planification municipale
H39: 2023-2024-2 | I39: =90 & " %" -> 90 % | J39: Programme de soutien aux municipalités dans la mise en place d'infrastructures de gestion durable des eaux de pluie à la source
I40: =100 & " %" -> 100 % | J40: Programme de subventions à l’adaptation des taxis et des autocars interurbains pour le transport des personnes se déplaçant en fauteuil roulant
J41: Programme de vitrine technologique pour les bâtiments et les solutions innovantes en bois
J42: Projets de démonstration de taxis électriques
J43: Promotion de l'électrification des transports
J44: PTMOBC - Programme de traitement des matières organiques par biométhanisation et compostage
J45: Rénoclimat-volet Chauffez vert
J46: Roulez électrique
J47: Soutien aux essais de fertilisation
J48: Technoclimat
J49: Véloce II

Sheet Validation (hidden)
B2: =Utilitaire!E8 -> PLAN D'ACTION 2013-2020 SUR LES CHANGEMENTS CLIMATIQUES
B3: ="Action " & Accueil!D58 -> Action en cours
B4: =Accueil!D55 -> 20.1 | C4: =Accueil!E55 -> Conversion et efficacité énergétique dans les bâtiments commerciaux et institutionnels (Écoperformance)
B5: Ministère porteur: | E5: =Accueil!$D$66 -> TEQ
B6: Rapport de validation de la fiche de suivi
A9: Code de couleur | B9: Feuille concernée | C9: no ligne | D9: Description de la problématique | E9: No d'erreur | F9: Commentaires

Sheet détail des projets
B2: PLAN D'ACTION 2013-2020 SUR LES CHANGEMENTS CLIMATIQUES
B3: ="Action " & Accueil!D58 -> Action en cours
B4: =Accueil!D55 -> 20.1 | C4: =Accueil!E55 -> Conversion et efficacité énergétique dans les bâtiments commerciaux et institutionnels (Écoperformance)
B5: Ministère porteur: | D5: =Accueil!$D$66 -> TEQ
B6: Détails et prévisions des dépenses par projet
AI20: =IF(AND(MID(#REF!,1,9)=AI23,AI24="Non Vérifié"),1,0) ->  | AJ20: =IF(AND(MID(#REF!,1,9)=AJ23,AJ24="Non Vérifié"),1,0) ->  | AK20: =IF(AND(MID(#REF!,1,9)=AK23,AK24="Non Vérifié"),1,0) ->  | AL20: =IF(AND(MID(#REF!,1,9)=AL23,AL24="Non Vérifié"),1,0) ->  | AM20: =IF(AND(MID(#REF!,1,9)=AM23,AM24="Non Vérifié"),1,0) ->  | AN20: =IF(AND(MID(#REF!,1,9)=AN23,AN24="Non Vérifié"),1,0) ->  | AO20: =IF(AND(MID(#REF!,1,9)=AO23,AO24="Non Vérifié"),1,0) ->  | AP20: =IF(AND(MID(#REF!,1,9)=AP23,AP24="Non Vérifié"),1,0) ->  | AQ20: =IF(AND(MID(#REF!,1,9)=AQ23,AQ24="Non Vérifié"),1,0) ->  | AR20: =IF(AND(MID(#REF!,1,9)=AR23,AR24="Non Vérifié"),1,0) ->  | AS20: =IF(AND(MID(#REF!,1,9)=AS23,AS24="Non Vérifié"),1,0) ->  | AT20: =IF(AND(MID(#REF!,1,9)=AT23,AT24="Non Vérifié"),1,0) ->  | AU20: =IF(AND(MID(#REF!,1,9)=AU23,AU24="Non Vérifié"),1,0) ->  | AV20: =IF(AND(MID(#REF!,1,9)=AV23,AV24="Non Vérifié"),1,0) ->  | AW20: =IF(AND(MID(#REF!,1,9)=AW23,AW24="Non Vérifié"),1,0) ->  | AX20: =IF(AND(MID(#REF!,1,9)=AX23,AX24="Non Vérifié"),1,0) ->  | AY20: =IF(AND(MID(#REF!,1,9)=AY23,AY24="Non Vérifié"),1,0) ->  | AZ20: =IF(AND(MID(#REF!,1,9)=AZ23,AZ24="Non Vérifié"),1,0) ->  | BA20: =IF(AND(MID(#REF!,1,9)=BA23,BA24="Non Vérifié"),1,0) ->  | BB20: =IF(AND(MID(#REF!,1,9)=BB23,BB24="Non Vérifié"),1,0) ->  | BC20: =IF(AND(MID(#REF!,1,9)=BC23,BC24="Non Vérifié"),1,0) ->  | BD20: =IF(AND(MID(#REF!,1,9)=BD23,BD24="Non Vérifié"),1,0) -> 
AI21: =IF(AND(MID(#REF!,1,9)=AI23,AI24="Vérifié"),1,0) ->  | AJ21: =IF(AND(MID(#REF!,1,9)=AJ23,AJ24="Vérifié"),1,0) ->  | AK21: =IF(AND(MID(#REF!,1,9)=AK23,AK24="Vérifié"),1,0) ->  | AL21: =IF(AND(MID(#REF!,1,9)=AL23,AL24="Vérifié"),1,0) ->  | AM21: =IF(AND(MID(#REF!,1,9)=AM23,AM24="Vérifié"),1,0) ->  | AN21: =IF(AND(MID(#REF!,1,9)=AN23,AN24="Vérifié"),1,0) ->  | AO21: =IF(AND(MID(#REF!,1,9)=AO23,AO24="Vérifié"),1,0) ->  | AP21: =IF(AND(MID(#REF!,1,9)=AP23,AP24="Vérifié"),1,0) ->  | AQ21: =IF(AND(MID(#REF!,1,9)=AQ23,AQ24="Vérifié"),1,0) ->  | AR21: =IF(AND(MID(#REF!,1,9)=AR23,AR24="Vérifié"),1,0) ->  | AS21: =IF(AND(MID(#REF!,1,9)=AS23,AS24="Vérifié"),1,0) ->  | AT21: =IF(AND(MID(#REF!,1,9)=AT23,AT24="Vérifié"),1,0) ->  | AU21: =IF(AND(MID(#REF!,1,9)=AU23,AU24="Vérifié"),1,0) ->  | AV21: =IF(AND(MID(#REF!,1,9)=AV23,AV24="Vérifié"),1,0) ->  | AW21: =IF(AND(MID(#REF!,1,9)=AW23,AW24="Vérifié"),1,0) ->  | AX21: =IF(AND(MID(#REF!,1,9)=AX23,AX24="Vérifié"),1,0) ->  | AY21: =IF(AND(MID(#REF!,1,9)=AY23,AY24="Vérifié"),1,0) ->  | AZ21: =IF(AND(MID(#REF!,1,9)=AZ23,AZ24="Vérifié"),1,0) ->  | BA21: =IF(AND(MID(#REF!,1,9)=BA23,BA24="Vérifié"),1,0) ->  | BB21: =IF(AND(MID(#REF!,1,9)=BB23,BB24="Vérifié"),1,0) ->  | BC21: =IF(AND(MID(#REF!,1,9)=BC23,BC24="Vérifié"),1,0) ->  | BD21: =IF(AND(MID(#REF!,1,9)=BD23,BD24="Vérifié"),1,0) -> 
B22: DÉTAILS DES PROJETS AUTORISÉS | N22: MONTANTS PROVENANT DU PACC 2013-2020 ($) | Y22: =MONTH(#REF!) ->  | AB22: DÉTAIL DES ÉMISSIONS DE GES RÉDUITES OU ÉVITÉES (en tonnes CO2 éq.)
A23: No | B23: VOLET OU THÉMATIQUE | C23: NOM DU REQUÉRANT | D23: NOM DU PROJET | E23: NOMBRE DE PROJETS | F23: RÉGION ADMINISTRATIVE | G23: MUNICIPALITÉ | H23: STATUT | I23: CLASSIFICATION DU PROJET | J23: MONTANT ENGAGÉ ($) | K23: DATE DE L'ENGAGEMENT | L23: DATE DU DERNIER VERSEMENT (prévu ou réalisé) | M23: BUDGET TOTAL DU PROJET ($) | N23: 2013-2014 | O23: 2014-2015 | P23: 2015-2016 | Q23: 2016-2017 | R23: 2017-2018 | S23: 2018-2019 | T23: 2019-2020 | U23: 2020-2021 | V23: 2021-2022 | W23: 2022-2023 | X23: 2023-2024 | Y23: MONTANT DES DÉPENSES RÉELLES ($) | Z23: TOTAL DES DÉPENSES RÉELLES ET PRÉVUES ($) | AB23: Type d'émission | AC23: émissions rapportées dans l'inventaire | AD23: Durée du projet (exemple: durée de vie de l'équipement) | AE23: Émissions | AG23: Vérifiées | AI23: 2013-2014 | AJ23: 2013-2014 | AK23: 2014-2015 | AL23: 2014-2015 | AM23: 2015-2016 | AN23: 2015-2016 | AO23: 2016-2017 | AP23: 2016-2017 | AQ23: 2017-2018 | AR23: 2017-2018 | AS23: 2018-2019 | AT23: 2018-2019 | AU23: 2019-2020 | AV23: 2019-2020 | AW23: 2020-2021 | AX23: 2020-2021 | AY23: 2021-2022 | AZ23: 2021-2022 | BA23: 2022-2023 | BB23: 2022-2023 | BC23: 2023-2024 | BD23: 2023-2024 | BE23: Coût/tonne estimé | BF23: Coût/tonne estimé de la dernière année vérifiée
J24: (convention signée, contrat, lettre de confirmation du ministre ou de son représentant ou lettre d'octroi) | N24: Réel | O24: Réel | P24: Réel | Q24: Réel | R24: Réel | S24: Prévu | T24: Prévu | U24: Prévu | V24: Prévu | W24: Prévu | X24: Prévu | AE24: Réduites | AF24: Évitées | AG24: Tierce partie | AH24: M/O | AI24: Vérifié | AJ24: Non vérifié | AK24: Vérifié | AL24: Non vérifié | AM24: Vérifié | AN24: Non vérifié | AO24: Vérifié | AP24: Non vérifié | AQ24: Vérifié | AR24: Non vérifié | AS24: Vérifié | AT24: Non vérifié | AU24: Vérifié | AV24: Non vérifié | AW24: Vérifié | AX24: Non vérifié | AY24: Vérifié | AZ24: Non vérifié | BA24: Vérifié | BB24: Non vérifié | BC24: Vérifié | BD24: Non vérifié
A25: 1 | B25: Implantation | C25: Collège Servite | D25: Implantation de diverses mesures d'efficacité énergétique au Collège Servite (D-686). | E25: 1 | F25: 05-Estrie | G25: Ayer's Cliff | H25: TE | I25: SU | J25: 87905.46 | K25: 2014-02-21 | L25: 2014-04-01 | M25: 300163.04 | O25: 87905.46 | Y25: 87905.46 | Z25: 87905.46 | AB25: QC-Québec | AC25: Oui | AD25: 39.3274765 | AE25: 117.884034 | AF25: 0 | AG25: Non | AH25: Oui | AI25: 4.18713782 | AK25: 117.239859 | AM25: 117.561947 | AO25: 117.239859 | AQ25: 117.239859 | BF25: =IF(SUM(AI25:BD25)=0,0,(Y25/SUMIF($AI$20:$BD$20,"1",AI25:BD25))) -> 
A26: 2 | B26: Analyse | C26: Ville de Montréal | D26: Ville de Montréal lot 12 | E26: 1 | F26: 06-Montréal | G26: Montréal | H26: TE | I26: SU | J26: 45000 | K26: 2014-02-21 | L26: 2015-03-19 | M26: 2348336.7 | O26: 39138.94 | Y26: 39138.94 | Z26: 39138.94 | AB26: QC-Québec | AC26: Oui | AD26: 15.0060778 | AE26: 0 | AF26: 0 | AG26: Non | AH26: Oui | BF26: 0
A27: 3 | B27: Implantation | C27: Municipalité de Crabtree | D27: Remplacement de la surfaceuse au propane par un équipement électrique. | E27: 1 | F27: 14-Lanaudière | G27: Crabtree | H27: AN | I27: SU | J27: - $ | L27: 2017-03-23 | M27: 163000 | Z27: - $ | AB27: QC-Québec | AC27: Oui | AD27: 20 | AE27: 0 | AF27: 5.98957305 | AG27: Non | AH27: Oui | BF27: 0
A28: 4 | B28: Implantation | C28: Ville de Montréal | D28: Efficacité énergétique au Centre Étienne-Desmarteau | E28: 1 | F28: 06-Montréal | G28: Montréal | H28: AC | I28: SU | J28: 243775.92 | K28: 2017-06-08 | L28: 2019-08-14 | M28: 604616.66 | R28: 121917.96 | S28: 60943.98 | T28: 60943.98 | Y28: 60943.98 | Z28: 243775.92 | AB28: QC-Québec | AC28: Oui | AD28: 22.4629936 | AE28: 404.113846 | AF28: 0 | AG28: Non | AH28: Oui | AI28: 0 | AK28: 0 | AM28: 0 | AO28: 0 | AQ28: 0 | BF28: 0
A29: 5 | B29: Analyse | C29: Ville de Montréal | D29: Analyse des mesures d'économies d'énergie au Centre du Plateau | E29: 1 | F29: 06-Montréal | G29: Montréal | H29: AN | I29: SU | J29: - $ | K29: 2014-04-03 | L29: 2015-05-29 | M29: 8171 | Z29: - $ | AB29: QC-Québec | AC29: Oui | AD29: 0 | AE29: 0 | AF29: 0 | AG29: Non | AH29: Oui | BF29: 0
A30: 6 | B30: Implantation | C30: CCUM, s.e.c. | D30: Système de récupération d'énergie des gaz de combustion | E30: 1 | F30: 06-Montréal | G30: Montréal | H30: TE | I30: SU | J30: 1207275.48 | K30: 2014-05-23 | L30: 2015-04-01 | M30: 2405313.37 | O30: 301818.87 | P30: 905456.61 | Y30: 1207275.48 | Z30: 1207275.48 | AB30: QC-Québec | AC30: Oui | AD30: 25 | AE30: 2414.55096 | AF30: 0 | AG30: Non | AH30: Oui | AI30: 0 | AK30: 138.539809 | AM30: 2407.95383 | AO30: 2401.35669 | AQ30: 2401.35669
A31: 7 | B31: Analyse | C31: CCUM, s.e.c. | D31: Récupération des gaz de combustion par refroidissement mécanique | E31: 1 | F31: 06-Montréal | G31: Montréal | H31: AC | I31: SU | J31: 5500 | K31: 2018-06-19 | L31: 2018-09-14 | M31: 22000 | S31: 5500 | Z31: 5500 | AB31: QC-Québec | AC31: Oui | AE31: 0 | AF31: 0 | AG31: Non | AH31: Oui | BF31: 0
A32: 8 | B32: Implantation | C32: Métro Richelieu inc. | D32: Metro Vaudreuil-Dorion | E32: 1 | F32: 16-Montérégie | G32: Vaudreuil-Dorion | H32: TE | I32: SU | J32: 81291.2 | K32: 2014-06-09 | L32: 2015-03-30 | M32: 85831.51 | O32: 52123.71 | Y32: 52123.71 | Z32: 52123.71 | AB32: QC-Québec | AC32: Oui | AD32: 15 | AE32: 90.4870921 | AF32: 0 | AG32: Non | AH32: Oui | AI32: 0 | AK32: 82.8228848 | AM32: 90.2398596 | AO32: 89.9926271 | AQ32: 89.9926271
A33: 9 | B33: Implantation | C33: Syndicat des copropriétaires d'administration 30 Berlioz enr. | D33: Projet de services éconergétiques | E33: 1 | F33: 06-Montréal | G33: Montréal | H33: AN | I33: SU | J33: - $ | L33: 2016-10-15 | M33: 860100 | Z33: - $ | AB33: QC-Québec | AC33: Oui | AD33: 17.0305939 | AE33: 431.597417 | AF33: 0 | AG33: Non | AH33: Oui | BF33: 0
A34: 10 | B34: Analyse | C34: Ville de Montréal | D34: Analyse des mesures d'économies d'énergie au Centre Côte-des-Neiges | E34: 1 | F34: 06-Montréal | G34: Montréal | H34: AN | I34: SU | J34: - $ | K34: 2014-06-03 | L34: 2015-05-29 | M34: 4204 | Z34: - $ | AB34: QC-Québec | AC34: Oui | AD34: 0 | AE34: 0 | AF34: 0 | AG34: Non | AH34: Oui | BF34: 0
A35: 11 | B35: Analyse | C35: Ville de Montréal | D35: Analyse des mesures d'économies d'énergie au Centre de formation des pompiers | E35: 1 | F35: 06-Montréal | G35: Montréal | H35: AN | I35: SU | J35: - $ | K35: 2014-06-03 | L35: 2015-05-29 | M35: 4381 | Z35: - $ | AB35: QC-Québec | AC35: Oui | AD35: 0 | AE35: 0 | AF35: 0 | AG35: Non | AH35: Oui | BF35: 0
A36: 12 | B36: Analyse | C36: Ville de Montréal | D36: Analyse des mesures d'économies d'énergie au Centre opérationnel de l'Est | E36: 1 | F36: 06-Montréal | G36: Montréal | H36: AN | I36: SU | J36: - $ | K36: 2014-06-03 | L36: 2015-05-29 | M36: 1339 | Z36: - $ | AB36: QC-Québec | AC36: Oui | AD36: 0 | AE36: 0 | AF36: 0 | AG36: Non | AH36: Oui | BF36: 0
A37: 13 | B37: Analyse | C37: Ville de Montréal | D37: Analyse des mesures d'économies d'énergie au Centre Roussin | E37: 1 | F37: 06-Montréal | G37: Montréal | H37: AN | I37: SU | J37: - $ | K37: 2014-06-03 | L37: 2015-05-29 | M37: 6001 | Z37: - $ | AB37: QC-Québec | AC37: Oui | AD37: 0 | AE37: 0 | AF37: 0 | AG37: Non | AH37: Oui | BF37: =IF(SUM(AI37:BD37)=0,0,(Y37/SUMIF($AI$20:$BD$20,"1",AI37:BD37))) -> 0
A38: 14 | B38: Analyse | C38: Ville de Montréal | D38: Analyse des mesures d'économies d'énergie au Centre sportif Pierre-Charbonneau | E38: 1 | F38: 06-Montréal | G38: Montréal | H38: AN | I38: SU | J38: - $ | K38: 2014-06-05 | L38: 2015-05-29 | M38: 14089 | Z38: - $ | AB38: QC-Québec | AC38: Oui | AD38: 0 | AE38: 0 | AF38: 0 | AG38: Non | AH38: Oui | BF38: =IF(SUM(AI38:BD38)=0,0,(Y38/SUMIF($AI$20:$BD$20,"1",AI38:BD38))) -> 0
A39: 15 | B39: Analyse | C39: Ville de Montréal | D39: Analyse des mesures d'économies d'énergie à la Maison de la culture Frontenac | E39: 1 | F39: 06-Montréal | G39: Montréal | H39: AN | I39: SU | J39: - $ | K39: 2014-06-03 | L39: 2015-05-29 | M39: 977 | Z39: - $ | AB39: QC-Québec | AC39: Oui | AD39: 0 | AE39: 0 | AF39: 0 | AG39: Non | AH39: Oui | BF39: =IF(SUM(AI39:BD39)=0,0,(Y39/SUMIF($AI$20:$BD$20,"1",AI39:BD39))) -> 0
A40: 16 | B40: Analyse | C40: CSSS de Memphrémagog | D40: Étude énergétique de système de production de vapeur et des systèmes thermiques de l'établissement | E40: 1 | F40: 05-Estrie | G40: Magog | H40: TE | I40: SU | J40: 10000 | K40: 2014-06-05 | L40: 2014-12-04 | M40: 135000 | O40: 10000 | Y40: 10000 | Z40: 10000 | AB40: QC-Québec | AC40: Oui | AD40: 24.0443439 | AE40: 0 | AF40: 0 | AG40: Non | AH40: Oui | BF40: =IF(SUM(AI40:BD40)=0,0,(Y40/SUMIF($AI$20:$BD$20,"1",AI40:BD40))) -> 0
A41: 17 | B41: Implantation | C41: CSSS de Memphrémagog | D41: Mesures d’efficacité énergétique du système de production de vapeur de l’établissement | E41: 1 | F41: 05-Estrie | G41: Magog | H41: AN | I41: SU | J41: - $ | L41: 2015-12-08 | M41: 85000 | Z41: - $ | AB41: QC-Québec | AC41: Oui | AD41: 25 | AE41: 0 | AF41: 0 | AG41: Non | AH41: Oui | BF41: =IF(SUM(AI41:BD41)=0,0,(Y41/SUMIF($AI$20:$BD$20,"1",AI41:BD41))) -> 0
A42: 18 | B42: Implantation | C42: Métro Richelieu inc. | D42: Super-C Sainte-Catherine | E42: 1 | F42: 03-Capitale-Nationale | G42: Québec | H42: RF | I42: SU | J42: - $ | K42: 2014-06-09 | L42: 2017-01-04 | M42: 81240.92 | O42: 43977.61 | Q42: -58636.81 | Z42: - $ | AB42: QC-Québec | AC42: Oui | AD42: 15 | AE42: 0.64392192 | AF42: 0 | AG42: Non | AH42: Oui | BF42: =IF(SUM(AI42:BD42)=0,0,(Y42/SUMIF($AI$20:$BD$20,"1",AI42:BD42))) -> 0
A43: 19 | B43: Implantation | C43: Métro Richelieu inc. | D43: Super C Canon (Saint-Canut) | E43: 1 | F43: 15-Laurentides | G43: Mirabel | H43: TE | I43: SU | J43: 47643.26 | K43: 2014-07-02 | L43: 2014-04-01 | M43: 130603 | O43: 47643.26 | Y43: 47643.26 | Z43: 47643.26 | AB43: QC-Québec | AC43: Oui | AD43: 15 | AE43: 62.0547154 | AF43: 0 | AG43: Non | AH43: Oui | AI43: 0 | AK43: 11.6988398 | AM43: 61.885167 | AO43: 61.7156186 | AQ43: 61.7156186 | BF43: =IF(SUM(AI43:BD43)=0,0,(Y43/SUMIF($AI$20:$BD$20,"1",AI43:BD43))) -> 
A44: 20 | B44: Analyse | C44: Entreprise Agostino inc. | D44: Changement des chaudières au 2055 Saint-Mathieu à Montréal | E44: 1 | F44: 06-Montréal | G44: Montréal | H44: TE | I44: SU | J44: 9250 | K44: 2014-07-07 | L44: 2014-10-16 | M44: 37000 | O44: 9250 | Y44: 9250 | Z44: 9250 | AB44: QC-Québec | AC44: Oui | AD44: 25 | AE44: 0 | AF44: 0 | AG44: Non | AH44: Oui | BF44: =IF(SUM(AI44:BD44)=0,0,(Y44/SUMIF($AI$20:$BD$20,"1",AI44:BD44))) -> 0
A45: 21 | B45: Implantation | C45: Entreprise Agostino inc. | D45: Changement des chaudières à l'immeuble 2055 Saint-Mathieu | E45: 1 | F45: 06-Montréal | G45: Montréal | H45: TE | I45: SU | J45: 247068.74 | K45: 2016-03-23 | L45: 2016-04-01 | M45: 490000 | Q45: 247068.74 | Y45: 247068.74 | Z45: 247068.74 | AB45: QC-Québec | AC45: Oui | AD45: 25 | AE45: 197.65499 | AF45: 0 | AG45: Non | AH45: Oui | AI45: 0 | AK45: 0 | AM45: 0 | AO45: 81.5461846 | AQ45: 196.574909 | BF45: =IF(SUM(AI45:BD45)=0,0,(Y45/SUMIF($AI$20:$BD$20,"1",AI45:BD45))) -> 
A46: 22 | B46: Analyse | C46: Commission scolaire des Hautes-Rivières | D46: Analyse énergétique à l'École des Prés-Verts | E46: 1 | F46: 16-Montérégie | G46: Saint-Jean-sur-Richelieu | H46: TE | I46: SU | J46: 6150 | K46: 2014-07-09 | L46: 2014-09-23 | M46: 24600 | O46: 6150 | Y46: 6150 | Z46: 6150 | AB46: QC-Québec | AC46: Oui | AD46: 19.3976707 | AE46: 0 | AF46: 0 | AG46: Non | AH46: Oui | BF46: =IF(SUM(AI46:BD46)=0,0,(Y46/SUMIF($AI$20:$BD$20,"1",AI46:BD46))) -> 0
A47: 23 | B47: Analyse | C47: Commission scolaire des Hautes-Rivières | D47: Analyse énergétique à l'École des Prés-Verts | E47: 1 | F47: 16-Montérégie | G47: Saint-Jean-sur-Richelieu | H47: TE | I47: SU | J47: 6150 | K47: 2014-07-09 | L47: 2014-09-23 | M47: 24600 | O47: 6150 | Y47: 6150 | Z47: 6150 | AB47: QC-Québec | AC47: Oui | AD47: 19.3976707 | AE47: 0 | AF47: 0 | AG47: Non | AH47: Oui | BF47: =IF(SUM(AI47:BD47)=0,0,(Y47/SUMIF($AI$20:$BD$20,"1",AI47:BD47))) -> 0
A48: 24 | B48: Analyse | C48: Commission scolaire des Hautes-Rivières | D48: Analyse énergétique à l'École Aux-Quatre-Vents | E48: 1 | F48: 16-Montérégie | G48: Saint-Jean-sur-Richelieu | H48: TE | I48: SU | J48: 5950 | K48: 2014-07-09 | L48: 2014-09-23 | M48: 23800 | O48: 5950 | Y48: 5950 | Z48: 5950 | AB48: QC-Québec | AC48: Oui | AD48: 15 | AE48: 0 | AF48: 0 | AG48: Non | AH48: Oui | BF48: =IF(SUM(AI48:BD48)=0,0,(Y48/SUMIF($AI$20:$BD$20,"1",AI48:BD48))) -> 0
A49: 25 | B49: Analyse | C49: Commission scolaire des Hautes-Rivières | D49: Analyse énergétique à l'École Aux-Quatre-Vents | E49: 1 | F49: 16-Montérégie | G49: Saint-Jean-sur-Richelieu | H49: TE | I49: SU | J49: 5950 | K49: 2014-07-09 | L49: 2014-09-23 | M49: 23800 | O49: 5950 | Y49: 5950 | Z49: 5950 | AB49: QC-Québec | AC49: Oui | AD49: 15 | AE49: 0 | AF49: 0 | AG49: Non | AH49: Oui | BF49: =IF(SUM(AI49:BD49)=0,0,(Y49/SUMIF($AI$20:$BD$20,"1",AI49:BD49))) -> 0
A50: 26 | B50: Analyse | C50: Commission scolaire de Saint-Hyacinthe | D50: Modernisation de la chaufferie | E50: 1 | F50: 16-Montérégie | G50: Saint-Marcel-de-Richelieu | H50: TE | I50: SU | J50: 2500 | K50: 2014-07-09 | L50: 2014-10-02 | M50: 5000 | O50: 2500 | Y50: 2500 | Z50: 2500 | AB50: QC-Québec | AC50: Oui | AD50: 25 | AE50: 41.2028819 | AF50: 0 | AG50: Non | AH50: Oui | BF50: =IF(SUM(AI50:BD50)=0,0,(Y50/SUMIF($AI$20:$BD$20,"1",AI50:BD50))) -> 0
A51: 27 | B51: Implantation | C51: Commission scolaire des Appalaches | D51: École Savio - Conversion du mazout vers l'électricité | E51: 1 | F51: 05-Estrie | G51: Stratford | H51: TE | I51: SU | J51: 33831.55 | K51: 2014-07-18 | L51: 2014-04-01 | M51: 94721.32 | O51: 33831.56 | Y51: 33831.56 | Z51: 33831.55 | AB51: QC-Québec | AC51: Oui | AD51: 25 | AE51: 0 | AF51: 27.0652391 | AG51: Non | AH51: Oui | AI51: 0 | AK51: 12.3494397 | AM51: 26.9912904 | AO51: 26.9173416 | AQ51: 26.9173416 | BF51: =IF(SUM(AI51:BD51)=0,0,(Y51/SUMIF($AI$20:$BD$20,"1",AI51:BD51))) -> 
A52: 28 | B52: Analyse | C52: Commission scolaire des Hautes-Rivières | D52: École Marguerite-Bourgeoys - Étude de faisabilité détaillée pour l'implantation de mesures d'efficacité énergétique | E52: 1 | F52: 16-Montérégie | G52: Saint-Jean-sur-Richelieu | H52: TE | I52: SU | J52: 4750 | K52: 2014-07-18 | L52: 2014-11-28 | M52: 67519.11 | O52: 4447.87 | Y52: 4447.87 | Z52: 4447.87 | AB52: QC-Québec | AC52: Oui | AD52: 15.0117502 | AE52: 74.2604578 | AF52: 0 | AG52: Non | AH52: Oui | AM52: 0.24460343 | AO52: 4.34611739 | AQ52: 4.34611739 | BF52: =IF(SUM(AI52:BD52)=0,0,(Y52/SUMIF($AI$20:$BD$20,"1",AI52:BD52))) -> 
A53: 29 | B53: Analyse | C53: Commission scolaire des Hautes-Rivières | D53: École Marguerite-Bourgeoys - Étude de faisabilité détaillée pour l'implantation de mesures d'efficacité énergétique | E53: 1 | F53: 16-Montérégie | G53: Saint-Jean-sur-Richelieu | H53: TE | I53: SU | J53: 4750 | K53: 2014-07-18 | L53: 2014-11-28 | M53: 67519.11 | O53: 4447.87 | Y53: 4447.87 | Z53: 4447.87 | AB53: QC-Québec | AC53: Oui | AD53: 15.0117502 | AE53: 4.36999716 | AF53: 0 | AG53: Non | AH53: Oui | AM53: 0.24460343 | AO53: 4.34611739 | AQ53: 4.34611739 | BF53: =IF(SUM(AI53:BD53)=0,0,(Y53/SUMIF($AI$20:$BD$20,"1",AI53:BD53))) -> 
A54: 30 | B54: Implantation | C54: Pourvoirie Mirage inc. | D54: Conversion des équipements à l'électricité et installation des équipements requis | E54: 1 | F54: 08-Abitibi-Témiscamingue | G54: Poularies | H54: TE | I54: SU | J54: 1051941.06 | K54: 2015-10-02 | L54: 2017-05-08 | M54: 1945000.04 | P54: 262985.26 | Q54: 525970.52 | R54: 262985.28 | Y54: 1051941.06 | Z54: 1051941.06 | AB54: QC-Québec | AC54: Oui | AD54: 50 | AE54: 0 | AF54: 956.183632 | AG54: Non | AH54: Oui | AI54: 0 | AK54: 0 | AM54: 0 | AO54: 201.164316 | AQ54: 950.958585 | BF54: =IF(SUM(AI54:BD54)=0,0,(Y54/SUMIF($AI$20:$BD$20,"1",AI54:BD54))) -> 
A55: 31 | B55: Analyse | C55: Commission scolaire des Hautes-Rivières | D55: Centre St-Edmond - Étude de faisabilité détaillée pour l'implantation de mesures d'efficacité énergétique | E55: 1 | F55: 16-Montérégie | G55: Saint-Jean-sur-Richelieu | H55: TE | I55: SU | J55: 5100 | K55: 2014-07-07 | L55: 2014-12-05 | M55: 316500 | O55: 5034.54 | Y55: 5034.54 | Z55: 5034.54 | AB55: QC-Québec | AC55: Oui | AD55: 20 | AE55: 10.870322 | AF55: 0 | AG55: Non | AH55: Oui | AM55: 5.40546067 | AO55: 10.8109213 | AQ55: 10.8109213 | BF55: =IF(SUM(AI55:BD55)=0,0,(Y55/SUMIF($AI$20:$BD$20,"1",AI55:BD55))) -> 
A56: 32 | B56: Analyse | C56: 8697841 Canada inc. | D56: Édifice Wellington-Eddy - Étude visant à identifier des mesures d'efficacité énergétique possibles et à évaluer leur faisabilité technique et économique | E56: 1 | F56: 07-Outaouais | G56: Gatineau | H56: TE | I56: SU | J56: 6650 | K56: 2014-07-02 | L56: 2015-02-24 | M56: 53200 | O56: 6650 | Y56: 6650 | Z56: 6650 | AB56: QC-Québec | AC56: Oui | AD56: 0 | AE56: 0 | AF56: 0 | AG56: Non | AH56: Oui | BF56: =IF(SUM(AI56:BD56)=0,0,(Y56/SUMIF($AI$20:$BD$20,"1",AI56:BD56))) -> 0
A57: 33 | B57: Implantation | C57: 8697841 Canada inc. | D57: Édifice Wellington-Eddy - Implantation de mesures d'efficacité énergétique | E57: 1 | F57: 07-Outaouais | G57: Gatineau | H57: TE | I57: SU | J57: 227209.59 | K57: 2015-06-09 | L57: 2015-05-05 | M57: 975000 | P57: 227209.59 | Y57: 227209.59 | Z57: 227209.59 | AB57: QC-Québec | AC57: Oui | AD57: 30 | AE57: 401.05031 | AF57: 0 | AG57: Non | AH57: Oui | AI57: 0 | AK57: 0 | AM57: 282.707596 | AO57: 398.858778 | AQ57: 398.858778 | BF57: =IF(SUM(AI57:BD57)=0,0,(Y57/SUMIF($AI$20:$BD$20,"1",AI57:BD57))) -> 
A58: 34 | B58: Analyse | C58: Centre de santé et de services sociaux de Témiscouata | D58: Hôpital de Notre-Dame-du-Lac | E58: 1 | F58: 01-Bas-Saint-Laurent | G58: Témiscouata-sur-le-Lac | H58: TE | I58: SU | J58: 25000 | K58: 2014-07-09 | L58: 2015-03-30 | M58: 207492 | O58: 25000 | Y58: 25000 | Z58: 25000 | AB58: QC-Québec | AC58: Oui | AD58: 39.9521561 | AE58: 0 | AF58: 0 | AG58: Non | AH58: Oui | BF58: =IF(SUM(AI58:BD58)=0,0,(Y58/SUMIF($AI$20:$BD$20,"1",AI58:BD58))) -> 0
A59: 35 | B59: Implantation | C59: CISSS du Bas-Saint-Laurent | D59: Projet d'implantation de mesures d'efficacité énergétique | E59: 1 | F59: 01-Bas-Saint-Laurent | G59: Témiscouata-sur-le-Lac | H59: AC | I59: SU | J59: 48869.14 | K59: 2016-06-20 | L59: 2019-05-15 | M59: 1510605 | Q59: 12217.28 | R59: 12217.28 | S59: 12217.28 | T59: 12217.3 | Y59: 36651.84 | Z59: 48869.14 | AB59: QC-Québec | AC59: Oui | AD59: 39.9884644 | AE59: 39.0953149 | AF59: 0 | AG59: Non | AH59: Oui | AI59: 0 | AK59: 0 | AM59: 0 | AO59: 0 | AQ59: 0 | BF59: =IF(SUM(AI59:BD59)=0,0,(Y59/SUMIF($AI$20:$BD$20,"1",AI59:BD59))) -> 0
A60: 36 | B60: Implantation | C60: Pourvoirie Domaine Lounan | D60: Conversion des équipements à l'électricité et installation des équipements requis | E60: 1 | F60: 15-Laurentides | G60: Mont-Saint-Michel | H60: TE | I60: SU | J60: 323369.56 | K60: 2015-09-18 | L60: 2017-03-06 | M60: 523838.57 | P60: 161684.78 | Q60: 122340.13 | Y60: 284024.91 | Z60: 284024.91 | AB60: QC-Québec | AC60: Oui | AD60: 50 | AE60: 0 | AF60: 227.21993 | AG60: Non | AH60: Oui | AI60: 0 | AK60: 0 | AM60: 0 | AO60: 187.487484 | AQ60: 225.978291 | BF60: =IF(SUM(AI60:BD60)=0,0,(Y60/SUMIF($AI$20:$BD$20,"1",AI60:BD60))) -> 
A61: 37 | B61: Implantation | C61: Corporation du service de recherche et d'expertise en transformation des produits forestiers de l'Est du Québec (SEREX) | D61: Remplacement d'une chaudière mazout léger par une chaudière électrique. | E61: 1 | F61: 01-Bas-Saint-Laurent | G61: Amqui | H61: TE | I61: SU | J61: 17001.89 | K61: 2014-07-08 | L61: 2014-04-01 | M61: 23150 | O61: 16761.89 | Y61: 16761.89 | Z61: 16761.89 | AB61: QC-Québec | AC61: Oui | AD61: 30 | AE61: 0 | AF61: 19.7697788 | AG61: Non | AH61: Oui | AI61: 0 | AK61: 14.0441052 | AM61: 19.7157631 | AO61: 19.6617473 | AQ61: 19.6617473 | BF61: =IF(SUM(AI61:BD61)=0,0,(Y61/SUMIF($AI$20:$BD$20,"1",AI61:BD61))) -> 
A62: 38 | B62: Implantation | C62: Commission scolaire Marguerite-Bourgeoys | D62: Agrandissement École Saint-Laurent | E62: 1 | F62: 06-Montréal | G62: Montréal | H62: TE | I62: SU | J62: 48664.54 | K62: 2014-07-02 | L62: 2016-03-31 | M62: 132379.62 | O62: 36498.42 | P62: 10504.12 | Y62: 47002.54 | Z62: 34836.42 | AB62: QC-Québec | AC62: Oui | AD62: 29.7987041 | AE62: 27.8691326 | AF62: 0 | AG62: Non | AH62: Oui | AI62: 0 | AK62: 5.10172646 | AM62: 27.7929874 | AO62: 27.7168423 | AQ62: 27.7168423 | BF62: =IF(SUM(AI62:BD62)=0,0,(Y62/SUMIF($AI$20:$BD$20,"1",AI62:BD62))) -> 
A63: 39 | B63: Implantation | C63: Université de Sherbrooke | D63: Pavillons C1 et C2 - Implantation de mesures en efficacité énergétique | E63: 1 | F63: 05-Estrie | G63: Sherbrooke | H63: TE | I63: SU | J63: 360615.44 | K63: 2015-02-18 | L63: 2016-05-30 | M63: 663695.95 | O63: 270461.58 | Q63: -10097.17 | Y63: 270461.58 | Z63: 260364.41 | AB63: QC-Québec | AC63: Oui | AD63: 25 | AE63: 819.871272 | AF63: 0 | AG63: Non | AH63: Oui | AI63: 0 | AK63: 336.012816 | AM63: 817.631186 | AO63: 815.391101 | AQ63: 815.391101 | BF63: =IF(SUM(AI63:BD63)=0,0,(Y63/SUMIF($AI$20:$BD$20,"1",AI63:BD63))) -> 
A64: 40 | B64: Implantation | C64: Université de Sherbrooke | D64: Projet d'efficacité énergétique et intégration d'une boucle géothermique - Pavillon C3 | E64: 1 | F64: 05-Estrie | G64: Sherbrooke | H64: AC | I64: SU | J64: 176272.48 | K64: 2018-04-27 | L64: 2019-04-05 | M64: 440000 | S64: 132204.36 | T64: 44068.12 | Y64: 132204.36 | Z64: 176272.48 | AB64: QC-Québec | AC64: Oui | AD64: 20 | AE64: 52.90096 | AF64: 299.644004 | AG64: Non | AH64: Oui | AI64: 0 | AK64: 0 | AM64: 0 | AO64: 0 | AQ64: 0 | BF64: =IF(SUM(AI64:BD64)=0,0,(Y64/SUMIF($AI$20:$BD$20,"1",AI64:BD64))) -> 0
A65: 41 | B65: Implantation | C65: Université de Sherbrooke | D65: Projet de récupération de chaleur aux Pavillons D1 et D2 | E65: 1 | F65: 05-Estrie | G65: Sherbrooke | H65: AC | I65: SU | J65: 446762.98 | K65: 2018-07-03 | L65: 2019-08-01 | M65: 1894729 | S65: 335072.22 | T65: 111690.76 | Z65: 446762.98 | AB65: QC-Québec | AC65: Oui | AD65: 20 | AE65: 893.525953 | AF65: 0 | AG65: Non | AH65: Oui | AI65: 0 | AK65: 0 | AM65: 0 | AO65: 0 | AQ65: 0 | BF65: =IF(SUM(AI65:BD65)=0,0,(Y65/SUMIF($AI$20:$BD$20,"1",AI65:BD65))) -> 0
A66: 42 | B66: Implantation | C66: 9147-4882 Québec inc. (Auberge du 31) | D66: Conversion des équipements à l'électricité | E66: 1 | F66: 02-Saguenay─Lac-Saint-Jean | G66: Saguenay | H66: AC | I66: SU | J66: 265421.66 | K66: 2015-09-18 | L66: 2015-04-01 | M66: 668000 | P66: 265421.67 | Y66: 265421.67 | Z66: 25211.25 | AB66: QC-Québec | AC66: Oui | AD66: 40 | AE66: 0 | AF66: 188.73881 | AG66: Non | AH66: Oui | AI66: 0 | AK66: 0 | AM66: 0 | AO66: 0 | AQ66: 0 | BF66: =IF(SUM(AI66:BD66)=0,0,(Y66/SUMIF($AI$20:$BD$20,"1",AI66:BD66))) -> 0
A67: 43 | B67: Implantation | C67: Centre de santé et de services sociaux de la Vallée-de-la-Gatineau | D67: Projet d'efficacité énergétique - Centre d'hébergement de Gracefield | E67: 1 | F67: 07-Outaouais | G67: Gracefield | H67: TE | I67: SU | J67: 149393.17 | K67: 2014-07-09 | L67: 2015-04-01 | M67: 595602 | O67: 37348.29 | P67: 112044.88 | Y67: 149393.17 | Z67: 149393.17 | AB67: QC-Québec | AC67: Oui | AD67: 34.8394737 | AE67: 0 | AF67: 117.023205 | AG67: Non | AH67: Oui | AI67: 0 | AK67: 0 | AM67: 90.4851556 | AO67: 116.383734 | AQ67: 116.383734 | BF67: =IF(SUM(AI67:BD67)=0,0,(Y67/SUMIF($AI$20:$BD$20,"1",AI67:BD67))) -> 
A68: 44 | B68: Analyse | C68: Cégep du Vieux Montréal | D68: Analyse des mesures d'économies d'énergie | E68: 1 | F68: 06-Montréal | G68: Montréal | H68: TE | I68: SU | J68: 25000 | K68: 2014-09-16 | L68: 2015-03-24 | M68: 345156 | O68: 25000 | Y68: 25000 | Z68: 25000 | AB68: QC-Québec | AC68: Oui | AD68: 29.027853 | AE68: 393.072284 | AF68: 0 | AG68: Non | AH68: Oui | BF68: =IF(SUM(AI68:BD68)=0,0,(Y68/SUMIF($AI$20:$BD$20,"1",AI68:BD68))) -> 0
A69: 45 | B69: Implantation | C69: Cégep du Vieux Montréal | D69: Implantation de mesures d'efficacité énergétique au Cégep du Vieux Montréal | E69: 1 | F69: 06-Montréal | G69: Montréal | H69: AC | I69: SU | J69: 535986.36 | K69: 2016-07-25 | L69: 2018-10-31 | M69: 1305984.05 | Q69: 133996.59 | R69: 267993.18 | S69: 133996.59 | Y69: 401989.77 | Z69: 535986.36 | AB69: QC-Québec | AC69: Oui | AD69: 28.2913857 | AE69: 430.161478 | AF69: 0 | AG69: Non | AH69: Oui | AI69: 0 | AK69: 0 | AM69: 0 | AO69: 0 | AQ69: 0 | BF69: =IF(SUM(AI69:BD69)=0,0,(Y69/SUMIF($AI$20:$BD$20,"1",AI69:BD69))) -> 0
A70: 46 | B70: Analyse | C70: CHU de Québec | D70: Analyse des mesures d'économies d'énergie à l’hôpital Saint-François d’Assise | E70: 1 | F70: 03-Capitale-Nationale | G70: Québec | H70: TE | I70: SU | J70: 25000 | K70: 2014-07-15 | L70: 2015-02-25 | M70: 779667 | O70: 25000 | Y70: 25000 | Z70: 25000 | AB70: QC-Québec | AC70: Oui | AD70: 26.3551292 | AE70: 0 | AF70: 0 | AG70: Non | AH70: Oui | BF70: =IF(SUM(AI70:BD70)=0,0,(Y70/SUMIF($AI$20:$BD$20,"1",AI70:BD70))) -> 0
A71: 47 | B71: Implantation | C71: CHU de Québec - Université Laval | D71: Projet d'implantation de mesures d'efficacité énergétique à l'Hôpital Saint-François d'Assise | E71: 1 | F71: 03-Capitale-Nationale | G71: Québec | H71: AC | I71: SU | J71: 2032576.27 | K71: 2016-01-11 | L71: 2018-08-30 | M71: 5543173.11 | P71: 508144.07 | Q71: 508144.07 | R71: 508144.07 | S71: 508144.06 | Y71: 1524432.21 | Z71: 2032576.27 | AB71: QC-Québec | AC71: Oui | AD71: 26.4805679 | AE71: 4065.15254 | AF71: 0 | AG71: Non | AH71: Oui | AI71: 0 | AK71: 0 | AM71: 0 | AO71: 0 | AQ71: 0 | BF71: =IF(SUM(AI71:BD71)=0,0,(Y71/SUMIF($AI$20:$BD$20,"1",AI71:BD71))) -> 0
A72: 48 | B72: Analyse | C72: Commission scolaire du Val-des-Cerfs | D72: Analyse énergétique chez CFP Brome - Boucherie | E72: 1 | F72: 16-Montérégie | G72: Cowansville | H72: TE | I72: SU | J72: 5006 | K72: 2014-07-14 | L72: 2015-03-30 | M72: 30036 | O72: 5006 | Y72: 5006 | Z72: 5006 | AB72: QC-Québec | AC72: Oui | AD72: 20.3527699 | AE72: 0 | AF72: 0 | AG72: Non | AH72: Oui | BF72: =IF(SUM(AI72:BD72)=0,0,(Y72/SUMIF($AI$20:$BD$20,"1",AI72:BD72))) -> 0
A73: 49 | B73: Analyse | C73: Propriétés DCV s.e.c. | D73: Projet d'efficacité énergétique et de modernisation des équipements électro-mécaniques | E73: 1 | F73: 06-Montréal | G73: Montréal | H73: TE | I73: SU | J73: 24600 | K73: 2014-07-29 | L73: 2014-11-12 | M73: 250000 | O73: 24600 | Y73: 24600 | Z73: 24600 | AB73: QC-Québec | AC73: Oui | AD73: 22.5538406 | AE73: 4590.63698 | AF73: 0 | AG73: Non | AH73: Oui | BF73: =IF(SUM(AI73:BD73)=0,0,(Y73/SUMIF($AI$20:$BD$20,"1",AI73:BD73))) -> 0
A74: 50 | B74: Implantation | C74: Immeuble De Liège Esplanade inc. | D74: Remplacement des fenêtres par des fenêtres à haut rendement énergétique. | E74: 1 | F74: 06-Montréal | G74: Montréal | H74: RF | I74: SU | J74: - $ | L74: 2014-12-31 | M74: 1198000 | Z74: - $ | AB74: QC-Québec | AC74: Oui | AD74: 30 | AE74: 404.32366 | AF74: 0 | AG74: Non | AH74: Oui | BF74: =IF(SUM(AI74:BD74)=0,0,(Y74/SUMIF($AI$20:$BD$20,"1",AI74:BD74))) -> 0
A75: 51 | B75: Implantation | C75: Ville de Montréal | D75: Centre Saint-Charles - Récupération chaleur sur système ammoniac | E75: 1 | F75: 06-Montréal | G75: Montréal | H75: AC | I75: SU | J75: 192885.25 | K75: 2014-12-10 | L75: 2015-04-01 | M75: 538993.71 | O75: 48221.31 | P75: 144663.93 | Y75: 192885.24 | Z75: 192885.25 | AB75: QC-Québec | AC75: Oui | AD75: 30 | AE75: 189.103807 | AF75: 0 | AG75: Non | AH75: Oui | AI75: 0 | AK75: 0 | AM75: 0 | AO75: 0 | AQ75: 0 | BF75: =IF(SUM(AI75:BD75)=0,0,(Y75/SUMIF($AI$20:$BD$20,"1",AI75:BD75))) -> 0
A76: 52 | B76: Implantation | C76: CSSS Domaine-du-Roy | D76: Projet d’efficacité énergétique à l'Hôtel-Dieu de Roberval | E76: 1 | F76: 02-Saguenay─Lac-Saint-Jean | G76: Roberval | H76: TE | I76: SU | J76: 1513883.57 | K76: 2015-01-14 | L76: 2015-04-01 | M76: 6669947 | O76: 756941.78 | P76: 756941.79 | Y76: 1513883.57 | Z76: 1513883.57 | AB76: QC-Québec | AC76: Oui | AD76: 30 | AE76: 3669.70988 | AF76: 0 | AG76: Non | AH76: Oui | AI76: 0 | AK76: 0 | AM76: 2125.6243 | AO76: 3649.65682 | AQ76: 3649.65682 | BF76: =IF(SUM(AI76:BD76)=0,0,(Y76/SUMIF($AI$20:$BD$20,"1",AI76:BD76))) -> 
A77: 53 | B77: Implantation | C77: Ville de Montréal | D77: Conversion du mazout à la Cavalerie du SPVM | E77: 1 | F77: 06-Montréal | G77: Montréal | H77: AN | I77: SU | J77: - $ | L77: 2014-10-15 | M77: 147000 | Z77: - $ | AB77: QC-Québec | AC77: Oui | AD77: 19.4977951 | AE77: 4.61213226 | AF77: 41.306702 | AG77: Non | AH77: Oui | BF77: =IF(SUM(AI77:BD77)=0,0,(Y77/SUMIF($AI$20:$BD$20,"1",AI77:BD77))) -> 0
A78: 54 | B78: Implantation | C78: Ville de Montréal | D78: Conversion du mazout vers l'électricité | E78: 1 | F78: 06-Montréal | G78: Montréal | H78: AN | I78: SU | J78: 48375 | K78: 2016-01-06 | L78: 2017-10-31 | M78: 64500 | Y78: - $ | Z78: - $ | AB78: QC-Québec | AC78: Oui | AD78: 20 | AE78: 0 | AF78: 47.8528868 | AG78: Non | AH78: Oui | BF78: =IF(SUM(AI78:BD78)=0,0,(Y78/SUMIF($AI$20:$BD$20,"1",AI78:BD78))) -> 0
A79: 55 | B79: Implantation | C79: Ville de Montréal | D79: Conversion du mazout au Chalet du Parc du Mont-Royal | E79: 1 | F79: 06-Montréal | G79: Montréal | H79: RF | I79: SU | J79: - $ | L79: 2015-08-31 | M79: 263400 | Z79: - $ | AB79: QC-Québec | AC79: Oui | AD79: 20 | AE79: 0 | AF79: 129.357828 | AG79: Non | AH79: Oui | BF79: =IF(SUM(AI79:BD79)=0,0,(Y79/SUMIF($AI$20:$BD$20,"1",AI79:BD79))) -> 0
A80: 56 | B80: Implantation | C80: Ville de Montréal | D80: Conversion du mazout au Garage du Parc du Mont-Royal | E80: 1 | F80: 06-Montréal | G80: Montréal | H80: RF | I80: SU | J80: - $ | L80: 2014-10-15 | M80: 238230 | Z80: - $ | AB80: QC-Québec | AC80: Oui | AD80: 20 | AE80: 0 | AF80: 87.4850219 | AG80: Non | AH80: Oui | BF80: =IF(SUM(AI80:BD80)=0,0,(Y80/SUMIF($AI$20:$BD$20,"1",AI80:BD80))) -> 0
A81: 57 | B81: Implantation | C81: Ville de Montréal | D81: Conversion du système de chauffage à la biénergie. | E81: 1 | F81: 06-Montréal | G81: Montréal | H81: AC | I81: SU | J81: 26972.99 | K81: 2016-10-27 | L81: 2018-04-02 | M81: 58443 | Q81: 6743.25 | R81: 13486.5 | S81: 6743.24 | Y81: 20229.75 | Z81: 26972.99 | AB81: QC-Québec | AC81: Oui | AD81: 25 | AE81: 0 | AF81: 73.9352083 | AG81: Non | AH81: Oui | AI81: 0 | AK81: 0 | AM81: 0 | AO81: 0 | AQ81: 0 | BF81: =IF(SUM(AI81:BD81)=0,0,(Y81/SUMIF($AI$20:$BD$20,"1",AI81:BD81))) -> 0
A82: 58 | B82: Implantation | C82: Collège Sainte-Anne de Lachine | D82: Conversion du système de chauffage au gaz naturel vers l'aérothermie | E82: 1 | F82: 06-Montréal | G82: Montréal | H82: TE | I82: SU | J82: 458179 | K82: 2014-11-12 | L82: 2014-04-01 | M82: 855700 | O82: 458179 | Y82: 458179 | Z82: 458179 | AB82: QC-Québec | AC82: Oui | AD82: 20 | AE82: 366.543197 | AF82: 0 | AG82: Non | AH82: Oui | AI82: 0 | AK82: 28.041556 | AM82: 365.541713 | AO82: 364.540228 | AQ82: 364.540228 | BF82: =IF(SUM(AI82:BD82)=0,0,(Y82/SUMIF($AI$20:$BD$20,"1",AI82:BD82))) -> 
A83: 59 | B83: Implantation | C83: Pourvoirie du Lac Beauregard | D83: Construction d'une ligne électrique | E83: 1 | F83: 15-Laurentides | G83: Mont-Laurier | H83: TE | I83: SU | J83: 256696.38 | K83: 2015-09-23 | L83: 2017-05-23 | M83: 562193 | P83: 192522.3 | R83: 35621.34 | Y83: 228143.64 | Z83: 228143.64 | AB83: QC-Québec | AC83: Oui | AD83: 50 | AE83: 0 | AF83: 182.514916 | AG83: Non | AH83: Oui | AI83: 0 | AK83: 0 | AM83: 27.9257795 | AO83: 181.517567 | AQ83: 181.517567 | BF83: =IF(SUM(AI83:BD83)=0,0,(Y83/SUMIF($AI$20:$BD$20,"1",AI83:BD83))) -> 
A84: 60 | B84: Implantation | C84: Ville de Montréal | D84: Rénovation et mise aux normes de l'aréna Roberto-Luongo | E84: 1 | F84: 06-Montréal | G84: Montréal | H84: AC | I84: SU | J84: 159808.35 | K84: 2015-02-24 | L84: 2015-04-01 | M84: 300780.75 | P84: 199760.44 | Y84: 199760.44 | Z84: 159808.35 | AB84: QC-Québec | AC84: Oui | AD84: 15 | AE84: 173.27022 | AF84: 0 | AG84: Non | AH84: Oui | AI84: 0 | AK84: 0 | AM84: 0 | AO84: 0 | AQ84: 0 | BF84: =IF(SUM(AI84:BD84)=0,0,(Y84/SUMIF($AI$20:$BD$20,"1",AI84:BD84))) -> 0
A85: 61 | B85: Implantation | C85: Collège d'enseignement général et professionel de Trois-Rivières | D85: Projet d'efficacité énergétique - Pavillon des Sciences | E85: 1 | F85: 04-Mauricie | G85: Trois-Rivières | H85: TE | I85: SU | J85: 611075.69 | K85: 2015-03-11 | L85: 2015-04-01 | M85: 1733511.9 | O85: 305537.85 | P85: 305537.84 | Y85: 611075.69 | Z85: 611075.69 | AB85: QC-Québec | AC85: Oui | AD85: 29.8940182 | AE85: 504.480841 | AF85: 0 | AG85: Non | AH85: Oui | AI85: 0 | AK85: 164.025192 | AM85: 503.102478 | AO85: 501.724115 | AQ85: 501.724115 | BF85: =IF(SUM(AI85:BD85)=0,0,(Y85/SUMIF($AI$20:$BD$20,"1",AI85:BD85))) -> 
A86: 62 | B86: Analyse | C86: Soltron Realty LP | D86: Analyse de mesures d'efficacité énergétique | E86: 1 | F86: 06-Montréal | G86: Montréal | H86: TE | I86: SU | J86: 19000 | K86: 2014-09-16 | L86: 2014-12-08 | M86: 133800 | O86: 19000 | Y86: 19000 | Z86: 19000 | AB86: QC-Québec | AC86: Oui | AD86: 30.8222237 | AE86: 76.5861233 | AF86: 0 | AG86: Non | AH86: Oui | AO86: 57.3349666 | AQ86: 76.1676199 | BF86: =IF(SUM(AI86:BD86)=0,0,(Y86/SUMIF($AI$20:$BD$20,"1",AI86:BD86))) -> 
A87: 63 | B87: Implantation | C87: CSSS Vallée-de-la-Gatineau | D87: Projet d'efficacité énergétique - Hôpital de Maniwaki | E87: 1 | F87: 07-Outaouais | G87: Maniwaki | H87: TE | I87: SU | J87: 465421.59 | K87: 2014-12-10 | L87: 2015-04-01 | M87: 2384417.98 | O87: 349066.19 | P87: 116355.4 | Y87: 465421.59 | Z87: 465421.59 | AB87: QC-Québec | AC87: Oui | AD87: 35 | AE87: 516.861363 | AF87: 0 | AG87: Non | AH87: Oui | AI87: 0 | AK87: 0 | AM87: 515.449174 | AO87: 514.036984 | AQ87: 514.036984 | BF87: =IF(SUM(AI87:BD87)=0,0,(Y87/SUMIF($AI$20:$BD$20,"1",AI87:BD87))) -> 
A88: 64 | B88: Analyse | C88: Ville de Saint-Jean-sur-Richelieu | D88: Étude spécifique - Nouveau système de ventilation et de récupération d'énergie | E88: 1 | F88: 16-Montérégie | G88: Saint-Jean-sur-Richelieu | H88: TE | I88: SU | J88: 7200 | K88: 2015-01-08 | L88: 2015-03-16 | M88: 58871.26 | O88: 6435.63 | Y88: 6435.63 | Z88: 6435.63 | AB88: QC-Québec | AC88: Oui | AD88: 20 | AE88: 31.0396383 | AF88: 0 | AG88: Non | AH88: Oui | AQ88: 20.8985537 | BF88: =IF(SUM(AI88:BD88)=0,0,(Y88/SUMIF($AI$20:$BD$20,"1",AI88:BD88))) -> 
A89: 65 | B89: Analyse | C89: Commission scolaire des Hautes-Rivières | D89: Analyse de mesures d'efficacité énergétique | E89: 1 | F89: 16-Montérégie | G89: Lacolle | H89: TE | I89: SU | J89: 6600 | K89: 2014-12-22 | L89: 2015-03-26 | M89: 88788 | O89: 5447 | Y89: 5447 | Z89: 5447 | AB89: QC-Québec | AC89: Oui | AD89: 25 | AE89: 24.3602306 | AF89: 0 | AG89: Non | AH89: Oui | AM89: 5.99022063 | AO89: 24.2271145 | AQ89: 24.2271145 | BF89: =IF(SUM(AI89:BD89)=0,0,(Y89/SUMIF($AI$20:$BD$20,"1",AI89:BD89))) -> 
A90: 66 | B90: Implantation | C90: Centre intégré de santé et de services sociaux de la Montérégie-Centre | D90: Projet d'efficacité énergétique de l'agrandissement de l'Hôpital du Haut-Richelieu–Rouville | E90: 1 | F90: 16-Montérégie | G90: Saint-Jean-sur-Richelieu | H90: AC | I90: SU | J90: 371038.83 | K90: 2014-09-24 | L90: 2018-06-29 | M90: 1096610.75 | O90: 92759.71 | P90: 92759.71 | S90: 177390.38 | Y90: 185519.42 | Z90: 270150.09 | AB90: QC-Québec | AC90: Oui | AD90: 30 | AE90: 541.434822 | AF90: 0 | AG90: Non | AH90: Oui | AI90: 0 | AK90: 0 | AM90: 0 | AO90: 0 | AQ90: 0 | BF90: =IF(SUM(AI90:BD90)=0,0,(Y90/SUMIF($AI$20:$BD$20,"1",AI90:BD90))) -> 0
A91: 67 | B91: Analyse | C91: Commission scolaire English-Montréal | D91: Étude d'efficacité énergétique pour 17 bâtiments | E91: 1 | F91: 06-Montréal | G91: Montréal | H91: TE | I91: SU | J91: 149396.5 | K91: 2015-02-24 | L91: 2015-03-31 | M91: 11680258 | O91: 149396.5 | Y91: 149396.5 | Z91: 149396.5 | AB91: QC-Québec | AC91: Oui | AD91: 38.4507141 | AE91: 0 | AF91: 0 | AG91: Non | AH91: Oui | BF91: =IF(SUM(AI91:BD91)=0,0,(Y91/SUMIF($AI$20:$BD$20,"1",AI91:BD91))) -> 0
A92: 68 | B92: Analyse | C92: Commission scolaire English-Montréal | D92: Étude d'efficacité énergétique pour 17 bâtiments | E92: 1 | F92: 06-Montréal | G92: Montréal | H92: TE | I92: SU | J92: 149396.5 | K92: 2015-02-24 | L92: 2015-03-31 | M92: 11680258 | O92: 149396.5 | Y92: 149396.5 | Z92: 149396.5 | AB92: QC-Québec | AC92: Oui | AD92: 38.4507141 | AE92: 0 | AF92: 0 | AG92: Non | AH92: Oui | BF92: =IF(SUM(AI92:BD92)=0,0,(Y92/SUMIF($AI$20:$BD$20,"1",AI92:BD92))) -> 0
A93: 69 | B93: Implantation | C93: Les Constructions Robin inc. | D93: Projet d'efficacité énergétique au nouvel hôtel Holiday Inn à Vaudreuil | E93: 1 | F93: 16-Montérégie | G93: Vaudreuil-Dorion | H93: TE | I93: SU | J93: 33523.23 | K93: 2015-01-08 | L93: 2015-04-01 | M93: 502219.25 | O93: 8380.81 | P93: 24703.46 | Y93: 33084.27 | Z93: 33084.27 | AB93: QC-Québec | AC93: Oui | AD93: 19.7833519 | AE93: 53.4163974 | AF93: 11.627394 | AG93: Non | AH93: Oui | AI93: 0 | AK93: 0 | AM93: 45.8505415 | AO93: 64.6883609 | AQ93: 64.6883609 | BF93: =IF(SUM(AI93:BD93)=0,0,(Y93/SUMIF($AI$20:$BD$20,"1",AI93:BD93))) -> 
A94: 70 | B94: Implantation | C94: Ville de Montréal | D94: Récupération de chaleur sur système réfrigération et efficacité énergétique | E94: 1 | F94: 06-Montréal | G94: Montréal | H94: AC | I94: SU | J94: 140141.3 | K94: 2016-02-10 | L94: 2015-04-01 | M94: 475933.63 | P94: 140141.3 | Y94: 140141.3 | Z94: 140141.3 | AB94: QC-Québec | AC94: Oui | AD94: 21.8391495 | AE94: 148.452088 | AF94: 0 | AG94: Non | AH94: Oui | AI94: 0 | AK94: 0 | AM94: 0 | AO94: 0 | AQ94: 0 | BF94: =IF(SUM(AI94:BD94)=0,0,(Y94/SUMIF($AI$20:$BD$20,"1",AI94:BD94))) -> 0
A95: 71 | B95: Analyse | C95: Buanderie Laser inc. | D95: Étude de faisabilité - Efficacité énergétique dans une buanderie industrielle | E95: 1 | F95: 06-Montréal | G95: Montréal | H95: TE | I95: SU | J95: 7500 | K95: 2014-12-16 | L95: 2015-03-12 | M95: 60000 | O95: 7500 | Y95: 7500 | Z95: 7500 | AB95: QC-Québec | AC95: Oui | AD95: 0 | AE95: 0 | AF95: 0 | AG95: Non | AH95: Oui | BF95: =IF(SUM(AI95:BD95)=0,0,(Y95/SUMIF($AI$20:$BD$20,"1",AI95:BD95))) -> 0
A96: 72 | B96: Implantation | C96: Groupe Accueil International Ltée | D96: Optimisation de la chaufferie du bâtiment Gregor House | E96: 1 | F96: 06-Montréal | G96: Montréal | H96: TE | I96: SU | J96: 144315.71 | K96: 2015-03-20 | L96: 2015-04-01 | M96: 382000 | O96: 36078.93 | P96: 108236.78 | Y96: 144315.71 | Z96: 144315.71 | AB96: QC-Québec | AC96: Oui | AD96: 35 | AE96: 118.035267 | AF96: 0 | AG96: Non | AH96: Oui | AI96: 0 | AK96: 48.3751094 | AM96: 117.712766 | AO96: 117.390266 | AQ96: 117.390266 | BF96: =IF(SUM(AI96:BD96)=0,0,(Y96/SUMIF($AI$20:$BD$20,"1",AI96:BD96))) -> 
A97: 73 | B97: Implantation | C97: La fabrique de la paroisse de Saint-Charles-de-Grondines | D97: Remplacement des chaudières au mazout léger par des systèmes électriques zonés | E97: 1 | F97: 03-Capitale-Nationale | G97: Deschambault-Grondines | H97: TE | I97: SU | J97: 59713.2 | K97: 2015-02-05 | L97: 2014-04-01 | M97: 85972.79 | O97: 59713.2 | Y97: 59713.2 | Z97: 59713.2 | AB97: QC-Québec | AC97: Oui | AD97: 40 | AE97: 0 | AF97: 47.7705638 | AG97: Non | AH97: Oui | AI97: 0 | AK97: 19.7086206 | AM97: 47.6400431 | AO97: 47.5095225 | AQ97: 47.5095225 | BF97: =IF(SUM(AI97:BD97)=0,0,(Y97/SUMIF($AI$20:$BD$20,"1",AI97:BD97))) -> 
A98: 74 | B98: Implantation | C98: Le Syndicat des copropriétaires du Laurier de l'Île Paton | D98: Gestion efficace de l'ensemble de la consommation d’énergie et de l’appel de puissance électrique | E98: 1 | F98: 13-Laval | G98: Laval | H98: TE | I98: SU | J98: 86022.58 | K98: 2015-10-29 | L98: 2015-04-01 | M98: 123622.44 | P98: 86022.58 | Y98: 86022.58 | Z98: 86022.58 | AB98: QC-Québec | AC98: Oui | AD98: 25 | AE98: 0 | AF98: 73.1048108 | AG98: Non | AH98: Oui | AI98: 0 | AK98: 39.9479841 | AM98: 72.9050709 | AO98: 72.705331 | AQ98: 72.705331 | BF98: =IF(SUM(AI98:BD98)=0,0,(Y98/SUMIF($AI$20:$BD$20,"1",AI98:BD98))) -> 
A99: 75 | B99: Implantation | C99: Complexe sportif scientifique et éducatif Montcalm inc. | D99: Réfrigération à l'ammoniac avec récupération de chaleur | E99: 1 | F99: 14-Lanaudière | G99: Saint-Roch-de-l'Achigan | H99: TE | I99: SU | J99: 284234.28 | K99: 2016-01-12 | L99: 2015-04-01 | M99: 733454.71 | P99: 284234.28 | Y99: 284234.28 | Z99: 284234.28 | AB99: QC-Québec | AC99: Oui | AD99: 25 | AE99: 237.467726 | AF99: 32.313448 | AG99: Non | AH99: Oui | AI99: 0 | AK99: 0 | AM99: 22.113211 | AO99: 268.30696 | AQ99: 268.30696 | BF99: =IF(SUM(AI99:BD99)=0,0,(Y99/SUMIF($AI$20:$BD$20,"1",AI99:BD99))) -> 
A100: 76 | B100: Implantation | C100: Complexe sportif scientifique et éducatif Montcalm inc. | D100: Réfrigération à l'ammoniac avec récupération de chaleur | E100: 1 | F100: 14-Lanaudière | G100: Saint-Roch-de-l'Achigan | H100: AN | I100: SU | J100: - $ | L100: 2017-08-31 | M100: 294783 | Z100: - $ | AB100: QC-Québec | AC100: Oui | AD100: 25 | AE100: 201.85117 | AF100: 0 | AG100: Non | AH100: Oui | BF100: =IF(SUM(AI100:BD100)=0,0,(Y100/SUMIF($AI$20:$BD$20,"1",AI100:BD100))) -> 0
A101: 77 | B101: Implantation | C101: Rébec inc. | D101: Projet hydroélectrique de 400 kW sur la rivière Brooch | E101: 1 | F101: 09-Côte-Nord | G101: Sept-Îles | H101: AC | I101: SU | J101: 1254152.54 | K101: 2015-02-18 | L101: 2018-07-31 | M101: 1860846 | P101: 313538.14 | R101: 313538.14 | S101: 627076.27 | Y101: 627076.28 | Z101: 1254152.54 | AB101: QC-Québec | AC101: Oui | AD101: 30 | AE101: 0 | AF101: 1114.17378 | AG101: Non | AH101: Oui | AI101: 0 | AK101: 0 | AM101: 0 | AO101: 0 | AQ101: 0 | BF101: =IF(SUM(AI101:BD101)=0,0,(Y101/SUMIF($AI$20:$BD$20,"1",AI101:BD101))) -> 0
A102: 78 | B102: Implantation | C102: Centre intégré de santé et de services sociaux de Chaudière-Appalaches | D102: D654J – Projet en efficacité énergétique au Centre d'hébergement de Sainte-Claire | E102: 1 | F102: 12-Chaudière-Appalaches | G102: Sainte-Claire | H102: TE | I102: SU | J102: 46321.47 | K102: 2015-10-26 | L102: 2015-04-01 | M102: 66821.48 | P102: 47895.32 | Y102: 47895.32 | Z102: 36314.95 | AB102: QC-Québec | AC102: Oui | AD102: 25 | AE102: 0 | AF102: 38.976156 | AG102: Non | AH102: Oui | AI102: 0 | AK102: 0 | AM102: 6.28304155 | AO102: 38.7631716 | AQ102: 38.7631716 | BF102: =IF(SUM(AI102:BD102)=0,0,(Y102/SUMIF($AI$20:$BD$20,"1",AI102:BD102))) -> 
A103: 79 | B103: Implantation | C103: Centre intégré universitaire de santé et services sociaux de l'Est-de-l'iÎe-de-Montréal (CIUSSS de l'Est-de-l'Île-de-Montréal ) | D103: Projet d'efficacité énergétique - Centre d'hébergement des Quatre-Temps | E103: 1 | F103: 06-Montréal | G103: Montréal | H103: TE | I103: SU | J103: 79372.69 | K103: 2016-02-24 | L103: 2016-04-01 | M103: 209739 | Q103: 79372.69 | Y103: 79372.69 | Z103: 79372.69 | AB103: QC-Québec | AC103: Oui | AD103: 30 | AE103: 63.4981559 | AF103: 0 | AG103: Non | AH103: Oui | AI103: 0 | AK103: 0 | AM103: 0 | AO103: 37.9947982 | AQ103: 63.1511714 | BF103: =IF(SUM(AI103:BD103)=0,0,(Y103/SUMIF($AI$20:$BD$20,"1",AI103:BD103))) -> 
A104: 80 | B104: Implantation | C104: Office municipal d'habitation de Montréal | D104: Habitation 340 Plamondon - Projet d'efficacité énergétique | E104: 1 | F104: 06-Montréal | G104: Montréal | H104: AC | I104: SU | J104: 232561.02 | K104: 2015-12-10 | L104: 2016-04-01 | M104: 683107 | P104: 58140.25 | Q104: 116280.51 | S104: 58140.26 | Y104: 174420.76 | Z104: 232561.02 | AB104: QC-Québec | AC104: Oui | AD104: 24.22015 | AE104: 138.689751 | AF104: 60.10276 | AG104: Non | AH104: Oui | AI104: 0 | AK104: 0 | AM104: 0 | AO104: 0 | AQ104: 0 | BF104: =IF(SUM(AI104:BD104)=0,0,(Y104/SUMIF($AI$20:$BD$20,"1",AI104:BD104))) -> 0
A105: 81 | B105: Implantation | C105: Office municipal d'habitation de Montréal | D105: Habitation 533 André-Grasset - Projet d'efficacité énergétique | E105: 1 | F105: 06-Montréal | G105: Montréal | H105: AC | I105: SU | J105: 269302.04 | K105: 2016-03-10 | L105: 2016-04-01 | M105: 425735 | Q105: 269302.04 | Y105: 269302.04 | Z105: 269302.04 | AB105: QC-Québec | AC105: Oui | AD105: 22.6524963 | AE105: 136.277466 | AF105: 81.2140252 | AG105: Non | AH105: Oui | AI105: 0 | AK105: 0 | AM105: 0 | AO105: 0 | AQ105: 0 | BF105: =IF(SUM(AI105:BD105)=0,0,(Y105/SUMIF($AI$20:$BD$20,"1",AI105:BD105))) -> 0
A106: 82 | B106: Analyse | C106: Aéroport de Québec inc. | D106: Étude d'efficacité énergétique visant la récupération de chaleur des refroidisseurs et la géothermie | E106: 1 | F106: 03-Capitale-Nationale | G106: Québec | H106: TE | I106: SU | J106: 12463.5 | K106: 2015-03-09 | L106: 2015-12-09 | M106: 323737.44 | P106: 12451.44 | Y106: 12451.44 | Z106: 12451.44 | AB106: QC-Québec | AC106: Oui | AD106: 25 | AE106: 0 | AF106: 0 | AG106: Non | AH106: Oui | BF106: =IF(SUM(AI106:BD106)=0,0,(Y106/SUMIF($AI$20:$BD$20,"1",AI106:BD106))) -> 0
A107: 83 | B107: Implantation | C107: Centre intégré de santé et de services sociaux de Chaudière-Appalaches | D107: D654O - Hôtel-Dieu de Lévis - Projet d'efficacité énergétique | E107: 1 | F107: 12-Chaudière-Appalaches | G107: Lévis | H107: TE | I107: SU | J107: 1418066.2 | K107: 2015-11-11 | L107: 2016-04-01 | M107: 6266275.29 | P107: 709033.1 | Q107: 709033.1 | Y107: 1418066.2 | Z107: 1418066.2 | AB107: QC-Québec | AC107: Oui | AD107: 42.0202103 | AE107: 417.582679 | AF107: 2493.60276 | AG107: Non | AH107: Oui | AI107: 0 | AK107: 0 | AM107: 0 | AO107: 1447.63866 | AQ107: 2895.27732 | BF107: =IF(SUM(AI107:BD107)=0,0,(Y107/SUMIF($AI$20:$BD$20,"1",AI107:BD107))) -> 
A108: 84 | B108: Implantation | C108: Centre intégré de santé et de services sociaux (CISSS) de la Montérégie-Ouest | D108: Projet efficacité énergétique - D635A - Hôpital Anna-Laberge | E108: 1 | F108: 16-Montérégie | G108: Châteauguay | H108: TE | I108: SU | J108: 677420.07 | K108: 2015-10-07 | L108: 2016-04-01 | M108: 2653517 | P108: 338710.04 | Q108: 338710.03 | Y108: 677420.07 | Z108: 677420.07 | AB108: QC-Québec | AC108: Oui | AD108: 38.6468964 | AE108: 282.045097 | AF108: 1103.58704 | AG108: Non | AH108: Oui | AI108: 0 | AK108: 0 | AM108: 0 | AO108: 620.884345 | AQ108: 1378.06038 | BF108: =IF(SUM(AI108:BD108)=0,0,(Y108/SUMIF($AI$20:$BD$20,"1",AI108:BD108))) -> 
A109: 85 | B109: Implantation | C109: Université du Québec à Chicoutimi | D109: UQAC - Récupération des hottes des laboratoires | E109: 1 | F109: 02-Saguenay─Lac-Saint-Jean | G109: Saguenay | H109: TE | I109: SU | J109: 85171.94 | K109: 2015-02-18 | L109: 2015-04-01 | M109: 116903.86 | O109: 63878.96 | P109: 12001.73 | Y109: 75880.69 | Z109: 75880.69 | AB109: QC-Québec | AC109: Oui | AD109: 20 | AE109: 68.1375522 | AF109: 0 | AG109: Non | AH109: Oui | AI109: 0 | AK109: 19.3614902 | AM109: 67.951384 | AO109: 67.7652158 | AQ109: 67.7652158 | BF109: =IF(SUM(AI109:BD109)=0,0,(Y109/SUMIF($AI$20:$BD$20,"1",AI109:BD109))) -> 
A110: 86 | B110: Implantation | C110: Université du Québec à Chicoutimi | D110: Université du Québec à Chicoutimi – Installation de nouvelles chaudières au gaz naturel | E110: 1 | F110: 02-Saguenay─Lac-Saint-Jean | G110: Saguenay | H110: RE | I110: SU | J110: 174147.11 | L110: 2016-09-05 | M110: 518427.25 | Q110: 174147.11 | Z110: 174147.11 | AB110: QC-Québec | AC110: Oui | AD110: 20 | AE110: 139.31769 | AF110: 0 | AG110: Non | AH110: Oui | AI110: 0 | AK110: 0 | AM110: 0 | AO110: 0 | AQ110: 0 | BF110: =IF(SUM(AI110:BD110)=0,0,(Y110/SUMIF($AI$20:$BD$20,"1",AI110:BD110))) -> 0
A111: 87 | B111: Implantation | C111: Centre intégré de santé et de services sociaux de Chaudière-Appalaches | D111: D654A – Projet en efficacité énergétique au Centre d'hébergement de soins de longue durée Saint-Sylvestre | E111: 1 | F111: 12-Chaudière-Appalaches | G111: Saint-Sylvestre | H111: TE | I111: SU | J111: 13926.87 | K111: 2015-10-26 | L111: 2015-04-01 | M111: 36536.2 | P111: 13926.87 | Y111: 13926.87 | Z111: 13926.87 | AB111: QC-Québec | AC111: Oui | AD111: 34.6873894 | AE111: 4.77530896 | AF111: 38.8809414 | AG111: Non | AH111: Oui | AI111: 0 | AK111: 0 | AM111: 3.81693993 | AO111: 43.4176917 | AQ111: 43.4176917 | BF111: =IF(SUM(AI111:BD111)=0,0,(Y111/SUMIF($AI$20:$BD$20,"1",AI111:BD111))) -> 
A112: 88 | B112: Implantation | C112: Centre intégré de santé et de services sociaux (CISSS) de la Montérégie-Ouest | D112: Projet efficacité énergétique - D635D - Centre d'hébergement de Saint-Rémi | E112: 1 | F112: 16-Montérégie | G112: Saint-Rémi | H112: TE | I112: SU | J112: 14107.42 | K112: 2015-11-02 | L112: 2015-04-01 | M112: 47284.15 | P112: 14107.42 | Y112: 14107.42 | Z112: 14107.42 | AB112: QC-Québec | AC112: Oui | AD112: 38.5532608 | AE112: 11.2859322 | AF112: 0 | AG112: Non | AH112: Oui | AI112: 0 | AK112: 0 | AM112: 2.22018339 | AO112: 11.2242605 | AQ112: 11.2242605 | BF112: =IF(SUM(AI112:BD112)=0,0,(Y112/SUMIF($AI$20:$BD$20,"1",AI112:BD112))) -> 
A113: 89 | B113: Implantation | C113: Centre intégré de santé et de services sociaux (CISSS) de la Montérégie-Ouest | D113: Projet efficacité énergétique - D635B - Centre d’hébergement de Châteauguay | E113: 1 | F113: 16-Montérégie | G113: Châteauguay | H113: TE | I113: SU | J113: 342834.39 | K113: 2015-11-11 | L113: 2016-04-01 | M113: 585100 | P113: 171417.2 | Q113: 171417.19 | Y113: 342834.39 | Z113: 342834.39 | AB113: QC-Québec | AC113: Oui | AD113: 25.3977661 | AE113: 276.949425 | AF113: 0 | AG113: Non | AH113: Oui | AI113: 0 | AK113: 0 | AM113: 0 | AO113: 260.302192 | AQ113: 275.43604 | BF113: =IF(SUM(AI113:BD113)=0,0,(Y113/SUMIF($AI$20:$BD$20,"1",AI113:BD113))) -> 
A114: 90 | B114: Implantation | C114: Centre intégré de santé et de services sociaux (CISSS) de la Montérégie-Ouest | D114: Projet efficacité énergétique - D635C - Centre d’hébergement de La Prairie | E114: 1 | F114: 16-Montérégie | G114: La Prairie | H114: TE | I114: SU | J114: 107558.68 | K114: 2015-11-11 | L114: 2015-04-01 | M114: 197389 | P114: 107558.68 | Y114: 107558.68 | Z114: 107558.68 | AB114: QC-Québec | AC114: Oui | AD114: 45.2303314 | AE114: 86.9183956 | AF114: 0 | AG114: Non | AH114: Oui | AI114: 0 | AK114: 0 | AM114: 17.0987008 | AO114: 86.4434317 | AQ114: 86.4434317 | BF114: =IF(SUM(AI114:BD114)=0,0,(Y114/SUMIF($AI$20:$BD$20,"1",AI114:BD114))) -> 
A115: 91 | B115: Implantation | C115: Syndicat de la copropriété Club Marin III | D115: Intégration d'un système de gestion énergétique à l'égard d'une conversion partielle de source d'énergie | E115: 1 | F115: 06-Montréal | G115: Montréal | H115: TE | I115: SU | J115: 95627.14 | K115: 2015-10-29 | L115: 2015-04-01 | M115: 160285 | P115: 95627.14 | Y115: 95627.14 | Z115: 95627.14 | AB115: QC-Québec | AC115: Oui | AD115: 15 | AE115: 128.622529 | AF115: 0 | AG115: Non | AH115: Oui | AI115: 0 | AK115: 47.7941639 | AM115: 128.271102 | AO115: 127.919674 | AQ115: 127.919674 | BF115: =IF(SUM(AI115:BD115)=0,0,(Y115/SUMIF($AI$20:$BD$20,"1",AI115:BD115))) -> 
A116: 92 | B116: Implantation | C116: Syndicat de la copropriété du 4150 Saint-Ambroise | D116: Intégration d'un système de gestion énergétique à l'égard d'une conversion partielle de source d'énergie | E116: 1 | F116: 06-Montréal | G116: Montréal | H116: RF | I116: SU | J116: - $ | L116: 2015-10-13 | M116: 85375 | Z116: - $ | AB116: QC-Québec | AC116: Oui | AD116: 15 | AE116: 88.4186515 | AF116: 0 | AG116: Non | AH116: Oui | BF116: =IF(SUM(AI116:BD116)=0,0,(Y116/SUMIF($AI$20:$BD$20,"1",AI116:BD116))) -> 0
A117: 93 | B117: Implantation | C117: Syndicat de la copropriété du 4200 Saint-Ambroise | D117: Intégration d'un système de gestion énergétique à l'égard d'une conversion partielle de source d'énergie | E117: 1 | F117: 06-Montréal | G117: Montréal | H117: RF | I117: SU | J117: - $ | L117: 2015-09-30 | M117: 91800 | Z117: - $ | AB117: QC-Québec | AC117: Oui | AD117: 25 | AE117: 0 | AF117: 94.1382222 | AG117: Non | AH117: Oui | BF117: =IF(SUM(AI117:BD117)=0,0,(Y117/SUMIF($AI$20:$BD$20,"1",AI117:BD117))) -> 0
A118: 94 | B118: Analyse | C118: 4196236 Canada inc. | D118: Modernisation énergétique - 9600 Meilleur | E118: 1 | F118: 06-Montréal | G118: Montréal | H118: TE | I118: SU | J118: 10000 | K118: 2015-05-14 | L118: 2015-11-09 | M118: 120000 | P118: 10000 | Y118: 10000 | Z118: 10000 | AB118: QC-Québec | AC118: Oui | AD118: 23.0891895 | AE118: 455.311831 | AF118: 0 | AG118: Non | AH118: Oui | BF118: =IF(SUM(AI118:BD118)=0,0,(Y118/SUMIF($AI$20:$BD$20,"1",AI118:BD118))) -> 0
A119: 95 | B119: Analyse | C119: 6300 avenue du Parc inc. | D119: Modernisation énergétique au 6300, avenue du Parc | E119: 1 | F119: 06-Montréal | G119: Montréal | H119: TE | I119: SU | J119: 6000 | K119: 2015-01-07 | L119: 2015-06-18 | M119: 48000 | P119: 5500 | Y119: 5500 | Z119: 5500 | AB119: QC-Québec | AC119: Oui | AD119: 24.9627247 | AE119: 0 | AF119: 0 | AG119: Non | AH119: Oui | BF119: =IF(SUM(AI119:BD119)=0,0,(Y119/SUMIF($AI$20:$BD$20,"1",AI119:BD119))) -> 0
A120: 96 | B120: Implantation | C120: Centre intégré universitaire de santé et de services sociaux du Centre-Sud-de-l’Île-de-Montréal | D120: Centre jeunesse de Montréal édifice DSM - Projet d'économie d'énergie | E120: 1 | F120: 06-Montréal | G120: Montréal | H120: TE | I120: SU | J120: 63164.54 | K120: 2016-04-27 | L120: 2016-04-01 | M120: 1424807.22 | Q120: 63164.54 | Y120: 63164.54 | Z120: 63164.54 | AB120: QC-Québec | AC120: Oui | AD120: 18.2915821 | AE120: 50.2927792 | AF120: 9.8400442 | AG120: Non | AH120: Oui | AI120: 0 | AK120: 0 | AM120: 0 | AO120: 51.7536595 | AQ120: 59.8042288 | BF120: =IF(SUM(AI120:BD120)=0,0,(Y120/SUMIF($AI$20:$BD$20,"1",AI120:BD120))) -> 
A121: 97 | B121: Implantation | C121: Centre intégré universitaire de santé et de services sociaux du Centre-Sud-de-l’Île-de-Montréal | D121: Centre jeunesse de Montréal siège social - Projet d'économie d'énergie | E121: 1 | F121: 06-Montréal | G121: Montréal | H121: TE | I121: SU | J121: 60870.47 | K121: 2016-04-27 | L121: 2016-04-01 | M121: 228191 | Q121: 60870.47 | Y121: 60870.47 | Z121: 60870.47 | AB121: QC-Québec | AC121: Oui | AD121: 19.9177647 | AE121: 49.5106725 | AF121: 0 | AG121: Non | AH121: Oui | AI121: 0 | AK121: 0 | AM121: 0 | AO121: 42.6116444 | AQ121: 49.2401224 | BF121: =IF(SUM(AI121:BD121)=0,0,(Y121/SUMIF($AI$20:$BD$20,"1",AI121:BD121))) -> 
A122: 98 | B122: Implantation | C122: Centre intégré universitaire de santé et de services sociaux du Centre-Sud-de-l’Île-de-Montréal | D122: Centre jeunesse de Montréal Cité des Prairies - Projet d'économie d'énergie | E122: 1 | F122: 06-Montréal | G122: Montréal | H122: TE | I122: SU | J122: 44807.07 | K122: 2016-04-12 | L122: 2016-04-01 | M122: 150294.25 | Q122: 44807.07 | Y122: 44807.07 | Z122: 44807.07 | AB122: QC-Québec | AC122: Oui | AD122: 21.1074276 | AE122: 44.0233814 | AF122: 0 | AG122: Non | AH122: Oui | AI122: 0 | AK122: 0 | AM122: 0 | AO122: 37.8889758 | AQ122: 43.7828165 | BF122: =IF(SUM(AI122:BD122)=0,0,(Y122/SUMIF($AI$20:$BD$20,"1",AI122:BD122))) -> 
A123: 99 | B123: Implantation | C123: Centre intégré universitaire de santé et de services sociaux du Centre-Sud-de-l’Île-de-Montréal | D123: Centre jeunesse de Montréal édifice Rose-Virginie Pelletier - Projet d'économie d'énergie | E123: 1 | F123: 06-Montréal | G123: Montréal | H123: TE | I123: SU | J123: 58205.68 | K123: 2016-04-27 | L123: 2016-04-01 | M123: 268962.46 | Q123: 58205.68 | Y123: 58205.68 | Z123: 58205.68 | AB123: QC-Québec | AC123: Oui | AD123: 28.0072212 | AE123: 48.9620894 | AF123: 0 | AG123: Non | AH123: Oui | AI123: 0 | AK123: 0 | AM123: 0 | AO123: 42.1395032 | AQ123: 48.694537 | BF123: =IF(SUM(AI123:BD123)=0,0,(Y123/SUMIF($AI$20:$BD$20,"1",AI123:BD123))) -> 
A124: 100 | B124: Implantation | C124: Centre intégré universitaire de santé et de services sociaux du Centre-Sud-de-l’Île-de-Montréal | D124: Centre jeunesse de Montréal édifice Décarie - Projet d'économie d'énergie | E124: 1 | F124: 06-Montréal | G124: Montréal | H124: TE | I124: SU | J124: 48914.81 | K124: 2016-04-12 | L124: 2016-04-01 | M124: 234379 | Q124: 48914.81 | Y124: 48914.81 | Z124: 48914.81 | AB124: QC-Québec | AC124: Oui | AD124: 27.5099678 | AE124: 52.1065532 | AF124: 0 | AG124: Non | AH124: Oui | AI124: 0 | AK124: 0 | AM124: 0 | AO124: 44.845804 | AQ124: 51.8218179 | BF124: =IF(SUM(AI124:BD124)=0,0,(Y124/SUMIF($AI$20:$BD$20,"1",AI124:BD124))) -> 
A125: 101 | B125: Implantation | C125: Centre intégré universitaire de santé et de services sociaux du Centre-Sud-de-l’Île-de-Montréal | D125: Centre jeunesse de Montréal Mont Saint-Antoine - Projet d'économie d'énergie | E125: 1 | F125: 06-Montréal | G125: Montréal | H125: TE | I125: SU | J125: 94353.18 | K125: 2016-04-27 | L125: 2016-04-01 | M125: 1050286 | Q125: 94353.18 | Y125: 94353.18 | Z125: 94353.18 | AB125: QC-Québec | AC125: Oui | AD125: 25.6122055 | AE125: 82.8168855 | AF125: 175.2258 | AG125: Non | AH125: Oui | AI125: 0 | AK125: 0 | AM125: 0 | AO125: 222.085918 | AQ125: 256.632616 | BF125: =IF(SUM(AI125:BD125)=0,0,(Y125/SUMIF($AI$20:$BD$20,"1",AI125:BD125))) -> 
A126: 102 | B126: Analyse | C126: Propriétés N-HIM Sherbrooke inc. | D126: Projet d'efficacité énergétique et de modernisation des équipements électro-mécaniques | E126: 1 | F126: 06-Montréal | G126: Montréal | H126: AN | I126: SU | J126: - $ | L126: 2015-10-10 | M126: 25000 | Z126: - $ | AB126: QC-Québec | AC126: Oui | AD126: 0 | AE126: 0 | AF126: 0 | AG126: Non | AH126: Oui | BF126: =IF(SUM(AI126:BD126)=0,0,(Y126/SUMIF($AI$20:$BD$20,"1",AI126:BD126))) -> 0
A127: 103 | B127: Implantation | C127: Office municipal d'habitation de Montréal | D127: Habitation 537 Rosemont Implantation de deux mesures d'efficacité énergétique | E127: 1 | F127: 06-Montréal | G127: Montréal | H127: AN | I127: SU | J127: - $ | L127: 2017-04-01 | M127: 267500 | Z127: - $ | AB127: QC-Québec | AC127: Oui | AD127: 24.5371265 | AE127: 89.1679902 | AF127: 0 | AG127: Non | AH127: Oui | BF127: =IF(SUM(AI127:BD127)=0,0,(Y127/SUMIF($AI$20:$BD$20,"1",AI127:BD127))) -> 0
A128: 104 | B128: Implantation | C128: Office municipal d'habitation de Montréal | D128: Habitation 389 Carillon Récupération de la chaleur et contrôle d'air d'appoint | E128: 1 | F128: 06-Montréal | G128: Montréal | H128: AN | I128: SU | J128: - $ | L128: 2017-06-20 | M128: 267071 | Z128: - $ | AB128: QC-Québec | AC128: Oui | AD128: 22.2955475 | AE128: 119.185843 | AF128: 36.0823991 | AG128: Non | AH128: Oui | BF128: =IF(SUM(AI128:BD128)=0,0,(Y128/SUMIF($AI$20:$BD$20,"1",AI128:BD128))) -> 0
A129: 105 | B129: Implantation | C129: Office municipal d'habitation de Montréal | D129: Habitation 577 Lajeunesse Implantation de chaudière a condensation | E129: 1 | F129: 06-Montréal | G129: Montréal | H129: AN | I129: SU | J129: - $ | L129: 2017-06-30 | M129: 224763 | Z129: - $ | AB129: QC-Québec | AC129: Oui | AD129: 24.2942886 | AE129: 75.5724441 | AF129: 0 | AG129: Non | AH129: Oui | BF129: =IF(SUM(AI129:BD129)=0,0,(Y129/SUMIF($AI$20:$BD$20,"1",AI129:BD129))) -> 0
A130: 106 | B130: Implantation | C130: Office municipal d'habitation de Montréal | D130: Habitation 384 Des fleurs Échangeur de chaleur | E130: 1 | F130: 06-Montréal | G130: Montréal | H130: AN | I130: SU | J130: - $ | L130: 2017-10-30 | M130: 80742 | Z130: - $ | AB130: QC-Québec | AC130: Oui | AD130: 25 | AE130: 21.3136145 | AF130: 0 | AG130: Non | AH130: Oui | BF130: =IF(SUM(AI130:BD130)=0,0,(Y130/SUMIF($AI$20:$BD$20,"1",AI130:BD130))) -> 0
A131: 107 | B131: Implantation | C131: La Fabrique de la paroisse de Saint-Eustache | D131: Remplacement des chaudières au mazout léger par des systèmes électriques zonés | E131: 1 | F131: 15-Laurentides | G131: Saint-Eustache | H131: TE | I131: SU | J131: 126341.25 | K131: 2016-02-10 | L131: 2016-04-01 | M131: 189477 | Q131: 125607.75 | Y131: 125607.75 | Z131: 125607.75 | AB131: QC-Québec | AC131: Oui | AD131: 40 | AE131: 0 | AF131: 134.08002 | AG131: Non | AH131: Oui | AI131: 0 | AK131: 0 | AM131: 0 | AO131: 66.3073325 | AQ131: 133.347343 | BF131: =IF(SUM(AI131:BD131)=0,0,(Y131/SUMIF($AI$20:$BD$20,"1",AI131:BD131))) -> 
A132: 108 | B132: Implantation | C132: La Fabrique de la paroisse de Saint-André de La Sarre | D132: Remplacement des chaudières au mazout léger par des systèmes électriques zonés | E132: 1 | F132: 08-Abitibi-Témiscamingue | G132: La Sarre | H132: TE | I132: SU | J132: 122475 | K132: 2016-03-16 | L132: 2016-04-01 | M132: 150942.55 | Q132: 101086.35 | Y132: 101086.35 | Z132: 101086.35 | AB132: QC-Québec | AC132: Oui | AD132: 40 | AE132: 0 | AF132: 120.140001 | AG132: Non | AH132: Oui | AI132: 0 | AK132: 0 | AM132: 0 | AO132: 60.0700003 | AQ132: 119.483498 | BF132: =IF(SUM(AI132:BD132)=0,0,(Y132/SUMIF($AI$20:$BD$20,"1",AI132:BD132))) -> 
A133: 109 | B133: Analyse | C133: Collège de Maisonneuve | D133: Analyse pour l'ajout de chauffage et de climatisation pour l'ensemble du pavillon sportif du collège de Maisonneuve | E133: 1 | F133: 06-Montréal | G133: Montréal | H133: TE | I133: SU | J133: 25000 | K133: 2016-01-27 | L133: 2017-02-23 | M133: 240000 | Q133: 25000 | Y133: 25000 | Z133: 25000 | AB133: QC-Québec | AC133: Oui | AD133: 24.4021111 | AE133: 0 | AF133: 0 | AG133: Non | AH133: Oui | BF133: =IF(SUM(AI133:BD133)=0,0,(Y133/SUMIF($AI$20:$BD$20,"1",AI133:BD133))) -> 0
A134: 110 | B134: Implantation | C134: Centre intégré universitaire de santé et services sociaux du Saguenay - Lac-St-Jean | D134: Implantation de mesures en efficacité énergétique en mode ESE | E134: 1 | F134: 02-Saguenay─Lac-Saint-Jean | G134: Saguenay | H134: AC | I134: SU | J134: 1810843.57 | K134: 2016-12-19 | L134: 2018-04-01 | M134: 5284554 | Q134: 452710.89 | R134: 452710.89 | S134: 905421.79 | Y134: 1358132.67 | Z134: 1810843.57 | AB134: QC-Québec | AC134: Oui | AD134: 25 | AE134: 3889.10507 | AF134: 0 | AG134: Non | AH134: Oui | AI134: 0 | AK134: 0 | AM134: 0 | AO134: 0 | AQ134: 0 | BF134: =IF(SUM(AI134:BD134)=0,0,(Y134/SUMIF($AI$20:$BD$20,"1",AI134:BD134))) -> 0
A135: 111 | B135: Implantation | C135: La Fabrique de la paroisse Coeur-Immaculé-de-Marie | D135: Remplacement des chaudières au mazout léger par des systèmes électriques zonés | E135: 1 | F135: 05-Estrie | G135: Wotton | H135: AC | I135: SU | J135: 78339.28 | K135: 2016-02-24 | L135: 2016-04-01 | M135: 135632 | Q135: 78339.28 | Y135: 78339.28 | Z135: 78339.28 | AB135: QC-Québec | AC135: Oui | AD135: 25 | AE135: 0 | AF135: 68.7515308 | AG135: Non | AH135: Oui | AI135: 0 | AK135: 0 | AM135: 0 | AO135: 0 | AQ135: 0 | BF135: =IF(SUM(AI135:BD135)=0,0,(Y135/SUMIF($AI$20:$BD$20,"1",AI135:BD135))) -> 0
A136: 112 | B136: Implantation | C136: Réserve indienne de Wendake | D136: Projet microturbine de 50 kw au Lac St-Anne | E136: 1 | F136: 03-Capitale-Nationale | G136: Wendake | H136: RE | I136: SU | J136: 144832.95 | L136: 2018-11-14 | M136: 426934.31 | S136: 144832.95 | Z136: 144832.95 | AB136: QC-Québec | AC136: Oui | AD136: 30 | AE136: 0 | AF136: 251.521371 | AG136: Non | AH136: Oui | AI136: 0 | AK136: 0 | AM136: 0 | AO136: 0 | AQ136: 0 | BF136: =IF(SUM(AI136:BD136)=0,0,(Y136/SUMIF($AI$20:$BD$20,"1",AI136:BD136))) -> 0
A137: 113 | B137: Implantation | C137: Métro Richelieu inc. | D137: Récupération de chaleur sur système de réfrigération | E137: 1 | F137: 12-Chaudière-Appalaches | G137: Saint-Georges | H137: AC | I137: SU | J137: 10072.76 | K137: 2017-07-21 | L137: 2018-06-29 | M137: 55694.77 | S137: 10072.76 | Z137: 10072.76 | AB137: QC-Québec | AC137: Oui | AD137: 15 | AE137: 66.8175022 | AF137: 0 | AG137: Non | AH137: Oui | AI137: 0 | AK137: 0 | AM137: 0 | AO137: 0 | AQ137: 0 | BF137: =IF(SUM(AI137:BD137)=0,0,(Y137/SUMIF($AI$20:$BD$20,"1",AI137:BD137))) -> 0
A138: 114 | B138: Implantation | C138: La Fabrique de la Paroisse de Sainte-Thérèse-d'Avila | D138: Conversion partielle du système de chauffage au mazout léger par l'ajout d'une chaudière électrique | E138: 1 | F138: 02-Saguenay─Lac-Saint-Jean | G138: Dolbeau-Mistassini | H138: AC | I138: SU | J138: 23853 | K138: 2016-02-18 | L138: 2016-04-01 | M138: 37101 | P138: 17889.75 | Q138: 5963.25 | Y138: 23853 | Z138: 23853 | AB138: QC-Québec | AC138: Oui | AD138: 7 | AE138: 0 | AF138: 86.989312 | AG138: Non | AH138: Oui | AI138: 0 | AK138: 0 | AM138: 0 | AO138: 0 | AQ138: 0 | BF138: =IF(SUM(AI138:BD138)=0,0,(Y138/SUMIF($AI$20:$BD$20,"1",AI138:BD138))) -> 0
A139: 115 | B139: Analyse | C139: Commission scolaire des Hautes-Rivières | D139: Analyse d'efficacité énergétique dans le but de réduire les gaz à effets de serre | E139: 1 | F139: 16-Montérégie | G139: Saint-Blaise-sur-Richelieu | H139: TE | I139: SU | J139: 4250 | K139: 2015-12-07 | L139: 2016-03-15 | M139: 59500 | P139: 4250 | Y139: 4250 | Z139: 4250 | AB139: QC-Québec | AC139: Oui | AD139: 0 | AE139: 0 | AF139: 0 | AG139: Non | AH139: Oui | BF139: =IF(SUM(AI139:BD139)=0,0,(Y139/SUMIF($AI$20:$BD$20,"1",AI139:BD139))) -> 0
A140: 116 | B140: Analyse | C140: Régie de Gestion des Matières Résiduelles de la Mauricie | D140: Optimisation de la récupération de biogaz | E140: 1 | F140: 04-Mauricie | G140: Saint-Étienne-des-Grès | H140: TE | I140: SU | J140: 9980 | K140: 2015-12-21 | L140: 2016-04-27 | M140: - $ | P140: 4990 | Q140: 4990 | Y140: 9980 | Z140: 9980 | AB140: QC-Québec | AC140: Oui | AD140: 20 | AE140: 0 | AF140: 0 | AG140: Non | AH140: Oui | BF140: =IF(SUM(AI140:BD140)=0,0,(Y140/SUMIF($AI$20:$BD$20,"1",AI140:BD140))) -> 0
A141: 117 | B141: Implantation | C141: La Fabrique de la paroisse de Notre-Dame-de-Bonsecours | D141: Conversion du système de chauffage au mazout vers l'électricité | E141: 1 | F141: 07-Outaouais | G141: Montebello | H141: TE | I141: SU | J141: 71583 | K141: 2016-01-12 | L141: 2016-11-28 | M141: 119969.44 | P141: 35791.5 | Q141: 34940.58 | Y141: 70732.08 | Z141: 70732.08 | AB141: QC-Québec | AC141: Oui | AD141: 25 | AE141: 0 | AF141: 69.5723783 | AG141: Non | AH141: Oui | AI141: 0 | AK141: 0 | AM141: 19.9592888 | AO141: 69.1922013 | AQ141: 69.1922013 | BF141: =IF(SUM(AI141:BD141)=0,0,(Y141/SUMIF($AI$20:$BD$20,"1",AI141:BD141))) -> 
A142: 118 | B142: Implantation | C142: CISSS de la Côte-Nord | D142: Projet d’optimisation de la chaufferie au foyer de Havre-Saint-Pierre | E142: 1 | F142: 09-Côte-Nord | G142: Havre-Saint-Pierre | H142: AC | I142: SU | J142: 101016.12 | K142: 2016-04-27 | L142: 2018-07-30 | M142: 219801 | Q142: 50508.06 | R142: 25254.03 | S142: 25254.03 | Y142: 75762.09 | Z142: 101016.12 | AB142: QC-Québec | AC142: Oui | AD142: 23 | AE142: 80.8128996 | AF142: 0 | AG142: Non | AH142: Oui | AI142: 0 | AK142: 0 | AM142: 0 | AO142: 0 | AQ142: 0 | BF142: =IF(SUM(AI142:BD142)=0,0,(Y142/SUMIF($AI$20:$BD$20,"1",AI142:BD142))) -> 0
A143: 119 | B143: Implantation | C143: Fabrique de la paroisse de Notre-Dame-de-Lourdes | D143: Remplacement d'une chaudière mazout léger par une chaudière électrique | E143: 1 | F143: 01-Bas-Saint-Laurent | G143: Mont-Joli | H143: TE | I143: SU | J143: 15817.91 | K143: 2015-12-14 | L143: 2018-04-26 | M143: 30226.5 | P143: 11863.44 | S143: 3954.47 | Y143: 15817.91 | Z143: 15817.91 | AB143: QC-Québec | AC143: Oui | AD143: 30 | AE143: 0 | AF143: 77.8251446 | AG143: Non | AH143: Oui | AI143: 0 | AK143: 0 | AM143: 22.7521598 | AO143: 77.3998706 | AQ143: 77.3998706 | BF143: =IF(SUM(AI143:BD143)=0,0,(Y143/SUMIF($AI$20:$BD$20,"1",AI143:BD143))) -> 
A144: 120 | B144: Implantation | C144: ÉnerProx inc. | D144: Conversion du mazout vers des thermopompes électriques | E144: 1 | F144: 17-Centre-du-Québec | G144: Victoriaville | H144: AC | I144: SU | J144: 22514.42 | K144: 2015-12-04 | L144: 2019-03-31 | M144: 64160 | P144: 5628.6 | S144: 16885.82 | Y144: 5628.6 | Z144: 22514.42 | AB144: QC-Québec | AC144: Oui | AD144: 25 | AE144: 0 | AF144: 18.0115378 | AG144: Non | AH144: Oui | AI144: 0 | AK144: 0 | AM144: 0 | AO144: 0 | AQ144: 0 | BF144: =IF(SUM(AI144:BD144)=0,0,(Y144/SUMIF($AI$20:$BD$20,"1",AI144:BD144))) -> 0
A145: 121 | B145: Analyse | C145: Ville de Baie-Comeau | D145: Aréna Henri-Desjardins - Étude en efficacité énergétique | E145: 1 | F145: 09-Côte-Nord | G145: Baie-Comeau | H145: TE | I145: SU | J145: 9750 | K145: 2016-01-14 | L145: 2016-07-14 | M145: 39000 | Q145: 9750 | Y145: 9750 | Z145: 9750 | AB145: QC-Québec | AC145: Oui | AD145: 20 | AE145: 0 | AF145: 0 | AG145: Non | AH145: Oui | BF145: =IF(SUM(AI145:BD145)=0,0,(Y145/SUMIF($AI$20:$BD$20,"1",AI145:BD145))) -> 0
A146: 122 | B146: Implantation | C146: Le Trois-Rivières (2014) inc. | D146: C5464-TRIV Implantation du produit écoAZUR | E146: 1 | F146: 04-Mauricie | G146: Trois-Rivières | H146: AC | I146: SU | J146: 34648.21 | K146: 2016-06-09 | L146: 2016-04-01 | M146: 62200 | Q146: 34648.21 | Y146: 34648.21 | Z146: 34648.21 | AB146: QC-Québec | AC146: Oui | AD146: 10 | AE146: 30.119399 | AF146: 0 | AG146: Non | AH146: Oui | AI146: 0 | AK146: 0 | AM146: 0 | AO146: 0 | AQ146: 0 | BF146: =IF(SUM(AI146:BD146)=0,0,(Y146/SUMIF($AI$20:$BD$20,"1",AI146:BD146))) -> 0
A147: 123 | B147: Implantation | C147: Le Bouvier inc. | D147: C5465-CAPT Implantation du produit écoAZUR | E147: 1 | F147: 03-Capitale-Nationale | G147: Québec | H147: AC | I147: SU | J147: 34648.21 | K147: 2016-06-09 | L147: 2016-04-01 | M147: 62200 | Q147: 34648.21 | Y147: 34648.21 | Z147: 34648.21 | AB147: QC-Québec | AC147: Oui | AD147: 10 | AE147: 27.7185688 | AF147: 0 | AG147: Non | AH147: Oui | AI147: 0 | AK147: 0 | AM147: 0 | AO147: 0 | AQ147: 0 | BF147: =IF(SUM(AI147:BD147)=0,0,(Y147/SUMIF($AI$20:$BD$20,"1",AI147:BD147))) -> 0
A148: 124 | B148: Implantation | C148: Restaurant CAP (2014) inc. | D148: C5466-CMAD Implantation du produit écoAZUR | E148: 1 | F148: 04-Mauricie | G148: Trois-Rivières | H148: AC | I148: SU | J148: 34648.21 | K148: 2016-06-09 | L148: 2016-04-01 | M148: 62200 | Q148: 34648.21 | Y148: 34648.21 | Z148: 34648.21 | AB148: QC-Québec | AC148: Oui | AD148: 10 | AE148: 27.7185688 | AF148: 0 | AG148: Non | AH148: Oui | AI148: 0 | AK148: 0 | AM148: 0 | AO148: 0 | AQ148: 0 | BF148: =IF(SUM(AI148:BD148)=0,0,(Y148/SUMIF($AI$20:$BD$20,"1",AI148:BD148))) -> 0
A149: 125 | B149: Implantation | C149: Restaurant Le CHLB inc. | D149: C5467-CHLB Implantation du produit écoAZUR | E149: 1 | F149: 03-Capitale-Nationale | G149: Québec | H149: AC | I149: SU | J149: 34648.21 | K149: 2016-06-09 | L149: 2016-04-01 | M149: 62200 | Q149: 34648.21 | Y149: 34648.21 | Z149: 34648.21 | AB149: QC-Québec | AC149: Oui | AD149: 10 | AE149: 34.3179871 | AF149: 0 | AG149: Non | AH149: Oui | AI149: 0 | AK149: 0 | AM149: 0 | AO149: 0 | AQ149: 0 | BF149: =IF(SUM(AI149:BD149)=0,0,(Y149/SUMIF($AI$20:$BD$20,"1",AI149:BD149))) -> 0
A150: 126 | B150: Implantation | C150: Restaurant Le CHNY inc. | D150: C5468-CHNY Implantation du produit écoAZUR | E150: 1 | F150: 12-Chaudière-Appalaches | G150: Lévis | H150: AC | I150: SU | J150: 34648.21 | K150: 2016-06-09 | L150: 2016-04-01 | M150: 62200 | Q150: 34648.21 | Y150: 34648.21 | Z150: 31973.01 | AB150: QC-Québec | AC150: Oui | AD150: 10 | AE150: 43.0752726 | AF150: 0 | AG150: Non | AH150: Oui | AI150: 0 | AK150: 0 | AM150: 0 | AO150: 0 | AQ150: 0 | BF150: =IF(SUM(AI150:BD150)=0,0,(Y150/SUMIF($AI$20:$BD$20,"1",AI150:BD150))) -> 0
A151: 127 | B151: Implantation | C151: Restaurant Donnacona (2014) inc. | D151: C5469-DNCA Implantation du produit écoAZUR | E151: 1 | F151: 03-Capitale-Nationale | G151: Donnacona | H151: AC | I151: SU | J151: 34648.21 | K151: 2016-06-09 | L151: 2016-04-01 | M151: 62200 | Q151: 34648.21 | Y151: 34648.21 | Z151: 34648.21 | AB151: QC-Québec | AC151: Oui | AD151: 10 | AE151: 27.7185688 | AF151: 0 | AG151: Non | AH151: Oui | AI151: 0 | AK151: 0 | AM151: 0 | AO151: 0 | AQ151: 0 | BF151: =IF(SUM(AI151:BD151)=0,0,(Y151/SUMIF($AI$20:$BD$20,"1",AI151:BD151))) -> 0
A152: 128 | B152: Implantation | C152: Le Drummondvillois (2014) inc. | D152: C5470-DRUM Implantation du produit écoAZUR | E152: 1 | F152: 17-Centre-du-Québec | G152: Drummondville | H152: AC | I152: SU | J152: 34648.21 | K152: 2016-06-09 | L152: 2016-04-01 | M152: 62200 | Q152: 34648.21 | Y152: 34648.21 | Z152: 30040.04 | AB152: QC-Québec | AC152: Oui | AD152: 10 | AE152: 44.8527882 | AF152: 0 | AG152: Non | AH152: Oui | AI152: 0 | AK152: 0 | AM152: 0 | AO152: 0 | AQ152: 0 | BF152: =IF(SUM(AI152:BD152)=0,0,(Y152/SUMIF($AI$20:$BD$20,"1",AI152:BD152))) -> 0
A153: 129 | B153: Implantation | C153: Martin Brie inc. | D153: C5471-DUBG Implantation du produit écoAZUR | E153: 1 | F153: 03-Capitale-Nationale | G153: Québec | H153: AC | I153: SU | J153: 34648.21 | K153: 2016-06-09 | L153: 2016-04-01 | M153: 62200 | Q153: 34648.21 | Y153: 34648.21 | Z153: 34648.21 | AB153: QC-Québec | AC153: Oui | AD153: 10 | AE153: 27.7185688 | AF153: 0 | AG153: Non | AH153: Oui | AI153: 0 | AK153: 0 | AM153: 0 | AO153: 0 | AQ153: 0 | BF153: =IF(SUM(AI153:BD153)=0,0,(Y153/SUMIF($AI$20:$BD$20,"1",AI153:BD153))) -> 0
A154: 130 | B154: Implantation | C154: Le Flys inc. | D154: C5472-FLYS Implantation du produit écoAZUR | E154: 1 | F154: 03-Capitale-Nationale | G154: Québec | H154: AC | I154: SU | J154: 34648.21 | K154: 2016-06-09 | L154: 2016-04-01 | M154: 62200 | Q154: 34648.21 | Y154: 34648.21 | Z154: 34648.21 | AB154: QC-Québec | AC154: Oui | AD154: 10 | AE154: 27.7185688 | AF154: 0 | AG154: Non | AH154: Oui | AI154: 0 | AK154: 0 | AM154: 0 | AO154: 0 | AQ154: 0 | BF154: =IF(SUM(AI154:BD154)=0,0,(Y154/SUMIF($AI$20:$BD$20,"1",AI154:BD154))) -> 0
A155: 131 | B155: Implantation | C155: Restaurant Alauzon (2014) inc. | D155: C5473-LZON Implantation du produit écoAZUR | E155: 1 | F155: 12-Chaudière-Appalaches | G155: Lévis | H155: AC | I155: SU | J155: 34648.21 | K155: 2016-06-09 | L155: 2016-04-01 | M155: 62200 | Q155: 34648.21 | Y155: 34648.21 | Z155: 34648.21 | AB155: QC-Québec | AC155: Oui | AD155: 10 | AE155: 36.902856 | AF155: 0 | AG155: Non | AH155: Oui | AI155: 0 | AK155: 0 | AM155: 0 | AO155: 0 | AQ155: 0 | BF155: =IF(SUM(AI155:BD155)=0,0,(Y155/SUMIF($AI$20:$BD$20,"1",AI155:BD155))) -> 0
A156: 132 | B156: Implantation | C156: Restaurant Neufchâtel inc. | D156: C5474-NCHT Implantation du produit écoAZUR | E156: 1 | F156: 03-Capitale-Nationale | G156: Québec | H156: AC | I156: SU | J156: 34648.21 | K156: 2016-06-09 | L156: 2016-04-01 | M156: 62200 | Q156: 34648.21 | Y156: 34648.21 | Z156: 34648.21 | AB156: QC-Québec | AC156: Oui | AD156: 10 | AE156: 36.6872279 | AF156: 0 | AG156: Non | AH156: Oui | AI156: 0 | AK156: 0 | AM156: 0 | AO156: 0 | AQ156: 0 | BF156: =IF(SUM(AI156:BD156)=0,0,(Y156/SUMIF($AI$20:$BD$20,"1",AI156:BD156))) -> 0
A157: 133 | B157: Implantation | C157: Le STMA (2014) inc. | D157: C5475-STMA Implantation du produit écoAZUR | E157: 1 | F157: 12-Chaudière-Appalaches | G157: Sainte-Marie | H157: AC | I157: SU | J157: 34648.21 | K157: 2016-06-09 | L157: 2016-04-01 | M157: 62200 | Q157: 34648.21 | Y157: 34648.21 | Z157: 34648.21 | AB157: QC-Québec | AC157: Oui | AD157: 10 | AE157: 35.970489 | AF157: 0 | AG157: Non | AH157: Oui | AI157: 0 | AK157: 0 | AM157: 0 | AO157: 0 | AQ157: 0 | BF157: =IF(SUM(AI157:BD157)=0,0,(Y157/SUMIF($AI$20:$BD$20,"1",AI157:BD157))) -> 0
A158: 134 | B158: Implantation | C158: TUGLIQ Démon Raglan, société en commandite | D158: Déploiement éolien aux Ïles-de-la-Madeleine | E158: 1 | F158: 11-Gaspésie--Îles-de-la-Madeleine | G158: Grosse-Île | H158: AN | I158: SU | J158: - $ | L158: 2018-12-10 | M158: 18700000 | Z158: - $ | AB158: QC-Québec | AC158: Oui | AD158: 20 | AE158: 0 | AF158: 16115.5024 | AG158: Non | AH158: Oui | BF158: =IF(SUM(AI158:BD158)=0,0,(Y158/SUMIF($AI$20:$BD$20,"1",AI158:BD158))) -> 0
A159: 135 | B159: Analyse | C159: Ville de Candiac | D159: Analyse de récupération d'énergie au Centre sportif Les 2 Glaces | E159: 1 | F159: 16-Montérégie | G159: Candiac | H159: TE | I159: SU | J159: 4100 | K159: 2016-02-02 | L159: 2016-11-08 | M159: 18886 | Q159: 4100 | Y159: 4100 | Z159: 4100 | AB159: QC-Québec | AC159: Oui | AD159: 15 | AE159: 0 | AF159: 0 | AG159: Non | AH159: Oui | BF159: =IF(SUM(AI159:BD159)=0,0,(Y159/SUMIF($AI$20:$BD$20,"1",AI159:BD159))) -> 0
A160: 136 | B160: Implantation | C160: Capital BLF inc. | D160: Projet d'économie d'énergie - Immeuble Le Loretteville | E160: 1 | F160: 03-Capitale-Nationale | G160: Québec | H160: AN | I160: SU | J160: - $ | K160: 2016-03-10 | L160: 2018-10-15 | M160: 208070.16 | Z160: - $ | AB160: QC-Québec | AC160: Oui | AD160: 22.8017464 | AE160: 88.0097225 | AF160: 0 | AG160: Non | AH160: Oui | BF160: =IF(SUM(AI160:BD160)=0,0,(Y160/SUMIF($AI$20:$BD$20,"1",AI160:BD160))) -> 0
A161: 137 | B161: Implantation | C161: Capital BLF inc. | D161: Projet d'économie d'énergie Capial BLF | E161: 1 | F161: 03-Capitale-Nationale | G161: Québec | H161: AC | I161: SU | J161: 104678.06 | K161: 2018-03-16 | L161: 2019-01-15 | M161: 214869.11 | S161: 104678.06 | Z161: 104678.06 | AB161: QC-Québec | AC161: Oui | AD161: 18.6373482 | AE161: 88.0097225 | AF161: 0 | AG161: Non | AH161: Oui | AI161: 0 | AK161: 0 | AM161: 0 | AO161: 0 | AQ161: 0 | BF161: =IF(SUM(AI161:BD161)=0,0,(Y161/SUMIF($AI$20:$BD$20,"1",AI161:BD161))) -> 0
A162: 138 | B162: Implantation | C162: 9123-8584 Québec inc. | D162: Projet d'efficacité énergétique - Immeuble La Belle Époque | E162: 1 | F162: 06-Montréal | G162: Montréal | H162: AN | I162: SU | J162: - $ | K162: 2016-03-24 | L162: 2017-10-15 | M162: 203967.81 | Z162: - $ | AB162: QC-Québec | AC162: Oui | AD162: 25.6229591 | AE162: 0 | AF162: 0 | AG162: Non | AH162: Oui | BF162: =IF(SUM(AI162:BD162)=0,0,(Y162/SUMIF($AI$20:$BD$20,"1",AI162:BD162))) -> 0
A163: 139 | B163: Implantation | C163: 9123-8584 Québec inc. | D163: Projet d'efficacité énergétique - Immeuble Manoir Metcalfe | E163: 1 | F163: 06-Montréal | G163: Westmount | H163: AN | I163: SU | J163: - $ | K163: 2016-03-24 | L163: 2017-10-15 | M163: 355832.77 | Z163: - $ | AB163: QC-Québec | AC163: Oui | AD163: 25.2140369 | AE163: 0 | AF163: 0 | AG163: Non | AH163: Oui | BF163: =IF(SUM(AI163:BD163)=0,0,(Y163/SUMIF($AI$20:$BD$20,"1",AI163:BD163))) -> 0
A164: 140 | B164: Implantation | C164: Société de l'assurance automobile du Québec | D164: Optimisation de la récupération d'énergie | E164: 1 | F164: 03-Capitale-Nationale | G164: Québec | H164: AN | I164: SU | J164: - $ | L164: 2017-12-01 | M164: 272670 | Z164: - $ | AB164: QC-Québec | AC164: Oui | AD164: 25 | AE164: 107.48724 | AF164: 0 | AG164: Non | AH164: Oui | BF164: =IF(SUM(AI164:BD164)=0,0,(Y164/SUMIF($AI$20:$BD$20,"1",AI164:BD164))) -> 0
A165: 141 | B165: Implantation | C165: Ville de Montréal | D165: Mise à niveau de l'aréna Francis-Bouillon | E165: 1 | F165: 06-Montréal | G165: Montréal | H165: AC | I165: SU | J165: 137551.91 | K165: 2017-05-26 | L165: 2018-06-29 | M165: 428923.21 | R165: 34387.98 | S165: 103163.93 | Y165: 34387.98 | Z165: 137551.91 | AB165: QC-Québec | AC165: Oui | AD165: 19.7539616 | AE165: 142.598738 | AF165: 0 | AG165: Non | AH165: Oui | AI165: 0 | AK165: 0 | AM165: 0 | AO165: 0 | AQ165: 0 | BF165: =IF(SUM(AI165:BD165)=0,0,(Y165/SUMIF($AI$20:$BD$20,"1",AI165:BD165))) -> 0
A166: 142 | B166: Implantation | C166: CIUSSS Capitale-Nationale | D166: Projet d’efficacité énergétique - Hôpital Sainte-Anne-de-Beaupré | E166: 1 | F166: 03-Capitale-Nationale | G166: Beaupré | H166: AC | I166: SU | J166: 754631.19 | K166: 2016-09-14 | L166: 2019-02-15 | M166: 2200224.83 | Q166: 377315.6 | R166: 188657.8 | S166: 188657.79 | Y166: 565973.4 | Z166: 754631.19 | AB166: QC-Québec | AC166: Oui | AD166: 20 | AE166: 243.475696 | AF166: 571.385814 | AG166: Non | AH166: Oui | AI166: 0 | AK166: 0 | AM166: 0 | AO166: 0 | AQ166: 0 | BF166: =IF(SUM(AI166:BD166)=0,0,(Y166/SUMIF($AI$20:$BD$20,"1",AI166:BD166))) -> 0
A167: 143 | B167: Implantation | C167: Metro Richelieu inc. | D167: Adonis (Métro) Griffintown | E167: 1 | F167: 06-Montréal | G167: Montréal | H167: RF | I167: SU | J167: - $ | L167: 2017-06-20 | M167: 131351 | Z167: - $ | AB167: QC-Québec | AC167: Oui | AD167: 20 | AE167: 97.1034907 | AF167: 0 | AG167: Non | AH167: Oui | BF167: =IF(SUM(AI167:BD167)=0,0,(Y167/SUMIF($AI$20:$BD$20,"1",AI167:BD167))) -> 0
A168: 144 | B168: Analyse | C168: L'Inter Marché | D168: Étude de faisabilité - Efficacité énergétique dans un supermarché | E168: 1 | F168: 06-Montréal | G168: Montréal | H168: TE | I168: SU | J168: 2500 | K168: 2016-01-15 | L168: 2016-03-14 | M168: 5000 | P168: 2500 | Y168: 2500 | Z168: 2500 | AB168: QC-Québec | AC168: Oui | AD168: 20.7085838 | AE168: 0 | AF168: 0 | AG168: Non | AH168: Oui | BF168: =IF(SUM(AI168:BD168)=0,0,(Y168/SUMIF($AI$20:$BD$20,"1",AI168:BD168))) -> 0
A169: 145 | B169: Analyse | C169: Société de développement de la Baie-James | D169: Rallongement de ligne électrique pour le relais routier | E169: 1 | F169: 10-Nord-du-Québec | G169: Matagami | H169: TE | I169: SU | J169: 25350 | K169: 2016-02-10 | L169: 2016-04-01 | M169: 63300 | P169: 12675 | Q169: 3150 | Y169: 15825 | Z169: 15825 | AB169: QC-Québec | AC169: Oui | AD169: 0 | AE169: 0 | AF169: 0 | AG169: Non | AH169: Oui | BF169: =IF(SUM(AI169:BD169)=0,0,(Y169/SUMIF($AI$20:$BD$20,"1",AI169:BD169))) -> 0
A170: 146 | B170: Implantation | C170: Société de développement de la Baie-James | D170: Raccordement au réseau électrique pour le Relais routier du km 381 | E170: 1 | F170: 10-Nord-du-Québec | G170: Matagami | H170: AC | I170: SU | J170: 1264692.69 | K170: 2017-06-08 | L170: 2018-11-23 | M170: 3564204 | R170: 632346.34 | S170: 632346.35 | Y170: 316173.17 | Z170: 1264692.69 | AB170: QC-Québec | AC170: Oui | AD170: 25 | AE170: 0 | AF170: 1472.03574 | AG170: Non | AH170: Oui | AI170: 0 | AK170: 0 | AM170: 0 | AO170: 0 | AQ170: 0 | BF170: =IF(SUM(AI170:BD170)=0,0,(Y170/SUMIF($AI$20:$BD$20,"1",AI170:BD170))) -> 0
A171: 147 | B171: Implantation | C171: Municipalité du Canton de Saint-Camille | D171: Conversion partielle du système de chauffage au mazout à un système de chauffage biénergie à l’électricité, zoné, et au mazout | E171: 1 | F171: 05-Estrie | G171: Saint-Camille | H171: AC | I171: SU | J171: 38775.08 | K171: 2016-02-19 | L171: 2016-04-01 | M171: 59350 | Q171: 38775.08 | Y171: 38775.08 | Z171: 38775.08 | AB171: QC-Québec | AC171: Oui | AD171: 25 | AE171: 0 | AF171: 31.0200652 | AG171: Non | AH171: Oui | AI171: 0 | AK171: 0 | AM171: 0 | AO171: 0 | AQ171: 0 | BF171: =IF(SUM(AI171:BD171)=0,0,(Y171/SUMIF($AI$20:$BD$20,"1",AI171:BD171))) -> 0
A172: 148 | B172: Implantation | C172: CIUSSS Capitale-Nationale | D172: Projet d'efficacité énergétique | E172: 1 | F172: 03-Capitale-Nationale | G172: Saint-Pierre-de-l'Île-d'Orléans | H172: AC | I172: SU | J172: 42132.02 | K172: 2016-06-20 | L172: 2018-09-01 | M172: 91503 | Q172: 10533 | R172: 21066 | S172: 10533.02 | Y172: 31599 | Z172: 42132.02 | AB172: QC-Québec | AC172: Oui | AD172: 20 | AE172: 33.705616 | AF172: 0 | AG172: Non | AH172: Oui | AI172: 0 | AK172: 0 | AM172: 0 | AO172: 0 | AQ172: 0 | BF172: =IF(SUM(AI172:BD172)=0,0,(Y172/SUMIF($AI$20:$BD$20,"1",AI172:BD172))) -> 0
A173: 149 | B173: Implantation | C173: Pourvoirie Poulin de Courval inc. | D173: Implantation d'un système d'énergie renouvelable | E173: 1 | F173: 02-Saguenay─Lac-Saint-Jean | G173: Sainte-Rose-du-Nord | H173: AC | I173: SU | J173: 233180.29 | K173: 2016-04-13 | L173: 2018-09-20 | M173: 450000 | Q173: 58295.07 | S173: 174885.22 | Y173: 58295.07 | Z173: 233180.29 | AB173: QC-Québec | AC173: Oui | AD173: 25 | AE173: 0 | AF173: 186.544232 | AG173: Non | AH173: Oui | AI173: 0 | AK173: 0 | AM173: 0 | AO173: 0 | AQ173: 0 | BF173: =IF(SUM(AI173:BD173)=0,0,(Y173/SUMIF($AI$20:$BD$20,"1",AI173:BD173))) -> 0
A174: 150 | B174: Implantation | C174: Commission scolaire des Patriotes | D174: Conversion du système de chauffage au mazout léger vers un système électrique - École Jacques Rocheleau | E174: 1 | F174: 16-Montérégie | G174: Saint-Basile-le-Grand | H174: AC | I174: SU | J174: 138365.16 | K174: 2016-07-25 | L174: 2019-02-28 | M174: 195711 | Q174: 34591.29 | S174: 103773.87 | Y174: 34591.29 | Z174: 138365.16 | AB174: QC-Québec | AC174: Oui | AD174: 20 | AE174: 0 | AF174: 124.196122 | AG174: Non | AH174: Oui | AI174: 0 | AK174: 0 | AM174: 0 | AO174: 0 | AQ174: 0 | BF174: =IF(SUM(AI174:BD174)=0,0,(Y174/SUMIF($AI$20:$BD$20,"1",AI174:BD174))) -> 0
A175: 151 | B175: Implantation | C175: Commission scolaire des Patriotes | D175: Projet d'efficacité énergétique-École L'Arpège | E175: 1 | F175: 16-Montérégie | G175: Sainte-Julie | H175: AC | I175: SU | J175: 9489.53 | K175: 2016-06-29 | L175: 2018-12-10 | M175: 26148 | Q175: 2372.38 | R175: 4744.76 | S175: 2372.39 | Y175: 7117.14 | Z175: 9489.53 | AB175: QC-Québec | AC175: Oui | AD175: 20 | AE175: 7.59162714 | AF175: 0 | AG175: Non | AH175: Oui | AI175: 0 | AK175: 0 | AM175: 0 | AO175: 0 | AQ175: 0 | BF175: =IF(SUM(AI175:BD175)=0,0,(Y175/SUMIF($AI$20:$BD$20,"1",AI175:BD175))) -> 0
A176: 152 | B176: Implantation | C176: Commission scolaire des Patriotes | D176: Conversion du système de chauffage au mazout léger vers un système électrique - École Le Rucher | E176: 1 | F176: 16-Montérégie | G176: Sainte-Julie | H176: AC | I176: SU | J176: 63110.74 | K176: 2016-07-29 | L176: 2019-02-28 | M176: 265056 | Q176: 15777.68 | S176: 47222.11 | Y176: 47333.04 | Z176: 62999.79 | AB176: QC-Québec | AC176: Oui | AD176: 20 | AE176: 0 | AF176: 50.3998327 | AG176: Non | AH176: Oui | AI176: 0 | AK176: 0 | AM176: 0 | AO176: 0 | AQ176: 0 | BF176: =IF(SUM(AI176:BD176)=0,0,(Y176/SUMIF($AI$20:$BD$20,"1",AI176:BD176))) -> 0
A177: 153 | B177: Implantation | C177: Commission scolaire des Patriotes | D177: Conversion du système de chauffage au mazout léger vers un système électrique - École de l'Odyssée | E177: 1 | F177: 16-Montérégie | G177: Saint-Amable | H177: AC | I177: SU | J177: 39250.73 | K177: 2016-06-27 | L177: 2019-02-28 | M177: 144598 | Q177: 9812.68 | S177: 29438.05 | Y177: 9812.68 | Z177: 39250.73 | AB177: QC-Québec | AC177: Oui | AD177: 20 | AE177: 31.4005827 | AF177: 0 | AG177: Non | AH177: Oui | AI177: 0 | AK177: 0 | AM177: 0 | AO177: 0 | AQ177: 0 | BF177: =IF(SUM(AI177:BD177)=0,0,(Y177/SUMIF($AI$20:$BD$20,"1",AI177:BD177))) -> 0
A178: 154 | B178: Implantation | C178: Commission scolaire des Patriotes | D178: Conversion du système de chauffage au mazout léger vers un système électrique - École Au-Fil-de-l'Eau (pavillon Desrochers) | E178: 1 | F178: 16-Montérégie | G178: Mont-Saint-Hilaire | H178: AC | I178: SU | J178: 37770.23 | K178: 2016-06-27 | L178: 2018-12-10 | M178: 83789 | Q178: 9442.56 | R178: 18885.12 | S178: 9442.55 | Y178: 28327.68 | Z178: 37770.23 | AB178: QC-Québec | AC178: Oui | AD178: 20 | AE178: 0 | AF178: 30.2161828 | AG178: Non | AH178: Oui | AI178: 0 | AK178: 0 | AM178: 0 | AO178: 0 | AQ178: 0 | BF178: =IF(SUM(AI178:BD178)=0,0,(Y178/SUMIF($AI$20:$BD$20,"1",AI178:BD178))) -> 0
A179: 155 | B179: Implantation | C179: Commission scolaire des Patriotes | D179: Conversion du système de chauffage au mazout léger vers un système électrique - École Louis-Hippolyte-Lafontaine | E179: 1 | F179: 16-Montérégie | G179: Boucherville | H179: AC | I179: SU | J179: 117454.54 | K179: 2016-08-01 | L179: 2019-01-30 | M179: 169524 | Q179: 29363.64 | S179: 88090.9 | Y179: 88090.92 | Z179: 117454.54 | AB179: QC-Québec | AC179: Oui | AD179: 20 | AE179: 0 | AF179: 93.9636348 | AG179: Non | AH179: Oui | AI179: 0 | AK179: 0 | AM179: 0 | AO179: 0 | AQ179: 0 | BF179: =IF(SUM(AI179:BD179)=0,0,(Y179/SUMIF($AI$20:$BD$20,"1",AI179:BD179))) -> 0
A180: 156 | B180: Implantation | C180: Commission scolaire des Patriotes | D180: Conversion du système de chauffage au mazout léger vers un système électrique - École Ludger-Duvernay | E180: 1 | F180: 16-Montérégie | G180: Verchères | H180: AC | I180: SU | J180: 102577.82 | K180: 2016-07-29 | L180: 2018-12-10 | M180: 172061 | Q180: 25644.46 | R180: 51288.92 | S180: 25644.44 | Y180: 76933.38 | Z180: 102577.82 | AB180: QC-Québec | AC180: Oui | AD180: 20 | AE180: 0 | AF180: 82.062259 | AG180: Non | AH180: Oui | AI180: 0 | AK180: 0 | AM180: 0 | AO180: 0 | AQ180: 0 | BF180: =IF(SUM(AI180:BD180)=0,0,(Y180/SUMIF($AI$20:$BD$20,"1",AI180:BD180))) -> 0
A181: 157 | B181: Implantation | C181: Commission scolaire des Patriotes | D181: Projet d'efficacité énergétique - École secondaire Mont-Bruno | E181: 1 | F181: 16-Montérégie | G181: Saint-Bruno-de-Montarville | H181: AC | I181: SU | J181: 93899.13 | K181: 2016-08-16 | L181: 2019-02-28 | M181: 193120 | Q181: 23474.78 | S181: 70424.35 | Y181: 23474.78 | Z181: 93899.13 | AB181: QC-Québec | AC181: Oui | AD181: 20 | AE181: 75.1193003 | AF181: 0 | AG181: Non | AH181: Oui | AI181: 0 | AK181: 0 | AM181: 0 | AO181: 0 | AQ181: 0 | BF181: =IF(SUM(AI181:BD181)=0,0,(Y181/SUMIF($AI$20:$BD$20,"1",AI181:BD181))) -> 0
A182: 158 | B182: Implantation | C182: Commission scolaire des Patriotes | D182: Conversion partielle du système de chauffage au mazout léger vers un système électrique - École De la Broquerie | E182: 1 | F182: 16-Montérégie | G182: Boucherville | H182: AC | I182: SU | J182: 93502.09 | K182: 2016-08-16 | L182: 2019-02-28 | M182: 151290 | Q182: 23375.52 | S182: 70126.57 | Y182: 23375.52 | Z182: 93502.09 | AB182: QC-Québec | AC182: Oui | AD182: 20 | AE182: 0 | AF182: 74.8016707 | AG182: Non | AH182: Oui | AI182: 0 | AK182: 0 | AM182: 0 | AO182: 0 | AQ182: 0 | BF182: =IF(SUM(AI182:BD182)=0,0,(Y182/SUMIF($AI$20:$BD$20,"1",AI182:BD182))) -> 0
A183: 159 | B183: Implantation | C183: Commission scolaire des Patriotes | D183: Conversion du système de chauffage au mazout léger vers un système électrique - École Notre-Dame 1 | E183: 1 | F183: 16-Montérégie | G183: Otterburn Park | H183: AC | I183: SU | J183: 115632.81 | K183: 2016-08-16 | L183: 2018-12-10 | M183: 217295 | Q183: 28908.2 | R183: 57816.4 | S183: 28908.21 | Y183: 86724.6 | Z183: 115632.81 | AB183: QC-Québec | AC183: Oui | AD183: 20 | AE183: 0 | AF183: 92.5062501 | AG183: Non | AH183: Oui | AI183: 0 | AK183: 0 | AM183: 0 | AO183: 0 | AQ183: 0 | BF183: =IF(SUM(AI183:BD183)=0,0,(Y183/SUMIF($AI$20:$BD$20,"1",AI183:BD183))) -> 0
A184: 160 | B184: Implantation | C184: Commission scolaire des Patriotes | D184: Conversion du système de chauffage au mazout léger vers un système électrique - École Notre-Dame 2 | E184: 1 | F184: 16-Montérégie | G184: Otterburn Park | H184: AC | I184: SU | J184: 104711.75 | K184: 2016-08-16 | L184: 2019-02-28 | M184: 190850 | Q184: 26177.94 | R184: 52355.88 | S184: 26177.93 | Y184: 78533.82 | Z184: 104711.75 | AB184: QC-Québec | AC184: Oui | AD184: 20 | AE184: 0 | AF184: 83.7693978 | AG184: Non | AH184: Oui | AI184: 0 | AK184: 0 | AM184: 0 | AO184: 0 | AQ184: 0 | BF184: =IF(SUM(AI184:BD184)=0,0,(Y184/SUMIF($AI$20:$BD$20,"1",AI184:BD184))) -> 0
A185: 161 | B185: Implantation | C185: Commission scolaire des Patriotes | D185: Conversion du système de chauffage au mazout léger vers un système électrique - École de l'Envolée | E185: 1 | F185: 16-Montérégie | G185: Saint-Amable | H185: AC | I185: SU | J185: 102099.68 | K185: 2016-08-16 | L185: 2018-12-10 | M185: 168826 | Q185: 25524.92 | S185: 76574.76 | Y185: 76574.76 | Z185: 102099.68 | AB185: QC-Québec | AC185: Oui | AD185: 20 | AE185: 0 | AF185: 81.6797413 | AG185: Non | AH185: Oui | AI185: 0 | AK185: 0 | AM185: 0 | AO185: 0 | AQ185: 0 | BF185: =IF(SUM(AI185:BD185)=0,0,(Y185/SUMIF($AI$20:$BD$20,"1",AI185:BD185))) -> 0
A186: 162 | B186: Implantation | C186: Commission scolaire des Patriotes | D186: Projet d'efficacité énergétique - École Ozias-Leduc | E186: 1 | F186: 16-Montérégie | G186: Mont-Saint-Hilaire | H186: AC | I186: SU | J186: 77861.87 | K186: 2016-08-16 | L186: 2018-12-10 | M186: 142000 | Q186: 19465.47 | R186: 38930.94 | S186: 19465.46 | Y186: 58396.41 | Z186: 77861.87 | AB186: QC-Québec | AC186: Oui | AD186: 20 | AE186: 62.2894948 | AF186: 0 | AG186: Non | AH186: Oui | AI186: 0 | AK186: 0 | AM186: 0 | AO186: 0 | AQ186: 0 | BF186: =IF(SUM(AI186:BD186)=0,0,(Y186/SUMIF($AI$20:$BD$20,"1",AI186:BD186))) -> 0
A187: 163 | B187: Implantation | C187: Commission scolaire des Patriotes | D187: Conversion du système de chauffage au mazout léger vers un système électrique - École Père-Marquette | E187: 1 | F187: 16-Montérégie | G187: Boucherville | H187: AC | I187: SU | J187: 197590.61 | K187: 2016-08-16 | L187: 2019-02-28 | M187: 507782 | Q187: 49397.65 | S187: 130343.46 | Y187: 148192.95 | Z187: 179741.11 | AB187: QC-Québec | AC187: Oui | AD187: 20 | AE187: 0.0027327 | AF187: 157.908384 | AG187: Non | AH187: Oui | AI187: 0 | AK187: 0 | AM187: 0 | AO187: 0 | AQ187: 0 | BF187: =IF(SUM(AI187:BD187)=0,0,(Y187/SUMIF($AI$20:$BD$20,"1",AI187:BD187))) -> 0
A188: 164 | B188: Implantation | C188: Commission scolaire des Patriotes | D188: Projet d'efficacité énergétique - École De Mortagne | E188: 1 | F188: 16-Montérégie | G188: Boucherville | H188: AC | I188: SU | J188: 694013.58 | K188: 2016-08-16 | L188: 2019-01-30 | M188: 1067840 | Q188: 173503.4 | S188: 520510.18 | Y188: 520510.2 | Z188: 694013.58 | AB188: QC-Québec | AC188: Oui | AD188: 20 | AE188: 387.771641 | AF188: 228.19241 | AG188: Non | AH188: Oui | AI188: 0 | AK188: 0 | AM188: 0 | AO188: 0 | AQ188: 0 | BF188: =IF(SUM(AI188:BD188)=0,0,(Y188/SUMIF($AI$20:$BD$20,"1",AI188:BD188))) -> 0
A189: 165 | B189: Implantation | C189: Commission scolaire des Patriotes | D189: Projet d'efficacité énergétique - École secondaire Polybel | E189: 1 | F189: 16-Montérégie | G189: Beloeil | H189: AC | I189: SU | J189: 419693.84 | K189: 2016-08-16 | L189: 2018-12-10 | M189: 627640 | Q189: 104923.46 | R189: 104923.46 | S189: 209846.92 | Y189: 314770.38 | Z189: 419693.84 | AB189: QC-Québec | AC189: Oui | AD189: 20 | AE189: 338.048923 | AF189: 0 | AG189: Non | AH189: Oui | AI189: 0 | AK189: 0 | AM189: 0 | AO189: 0 | AQ189: 0 | BF189: =IF(SUM(AI189:BD189)=0,0,(Y189/SUMIF($AI$20:$BD$20,"1",AI189:BD189))) -> 0
A190: 166 | B190: Implantation | C190: Commission scolaire des Patriotes | D190: Conversion du système de chauffage au mazout léger vers un système électrique - École des Trois-Temps | E190: 1 | F190: 16-Montérégie | G190: Saint-Marc-sur-Richelieu | H190: AC | I190: SU | J190: 105646.2 | K190: 2016-08-16 | L190: 2018-12-10 | M190: 201359 | Q190: 26411.55 | R190: 52823.1 | S190: 26411.55 | Y190: 79234.65 | Z190: 105646.2 | AB190: QC-Québec | AC190: Oui | AD190: 20 | AE190: 0 | AF190: 84.5169561 | AG190: Non | AH190: Oui | AI190: 0 | AK190: 0 | AM190: 0 | AO190: 0 | AQ190: 0 | BF190: =IF(SUM(AI190:BD190)=0,0,(Y190/SUMIF($AI$20:$BD$20,"1",AI190:BD190))) -> 0
A191: 167 | B191: Implantation | C191: Commission scolaire des Patriotes | D191: Conversion du système de chauffage au mazout léger vers un système électrique - École de Salaberry | E191: 1 | F191: 16-Montérégie | G191: Chambly | H191: AC | I191: SU | J191: 171239.54 | K191: 2016-08-16 | L191: 2018-12-10 | M191: 260897 | Q191: 42809.88 | R191: 85619.76 | S191: 42809.9 | Y191: 128429.64 | Z191: 171239.54 | AB191: QC-Québec | AC191: Oui | AD191: 20 | AE191: 16.8350348 | AF191: 121.573663 | AG191: Non | AH191: Oui | AI191: 0 | AK191: 0 | AM191: 0 | AO191: 0 | AQ191: 0 | BF191: =IF(SUM(AI191:BD191)=0,0,(Y191/SUMIF($AI$20:$BD$20,"1",AI191:BD191))) -> 0
A192: 168 | B192: Implantation | C192: Commission scolaire des Patriotes | D192: Conversion du système de chauffage au mazout léger vers un système électrique - École Du Carrousel | E192: 1 | F192: 16-Montérégie | G192: Varennes | H192: AC | I192: SU | J192: 120656.56 | K192: 2016-08-16 | L192: 2019-02-28 | M192: 168465 | Q192: 30164.14 | S192: 90492.42 | Y192: 30164.14 | Z192: 120656.56 | AB192: QC-Québec | AC192: Oui | AD192: 20 | AE192: 0 | AF192: 97.1637417 | AG192: Non | AH192: Oui | AI192: 0 | AK192: 0 | AM192: 0 | AO192: 0 | AQ192: 0 | BF192: =IF(SUM(AI192:BD192)=0,0,(Y192/SUMIF($AI$20:$BD$20,"1",AI192:BD192))) -> 0
A193: 169 | B193: Implantation | C193: Commission scolaire des Patriotes | D193: Conversion du système de chauffage au mazout léger vers un système électrique - École St-Charles | E193: 1 | F193: 16-Montérégie | G193: Saint-Charles-sur-Richelieu | H193: AC | I193: SU | J193: 42810.58 | K193: 2016-08-16 | L193: 2018-12-10 | M193: 93814 | Q193: 10702.64 | S193: 32107.94 | Y193: 32107.92 | Z193: 42810.58 | AB193: QC-Québec | AC193: Oui | AD193: 20 | AE193: 0 | AF193: 34.2484635 | AG193: Non | AH193: Oui | AI193: 0 | AK193: 0 | AM193: 0 | AO193: 0 | AQ193: 0 | BF193: =IF(SUM(AI193:BD193)=0,0,(Y193/SUMIF($AI$20:$BD$20,"1",AI193:BD193))) -> 0
A194: 170 | B194: Implantation | C194: Commission scolaire des Patriotes | D194: Projet d’efficacité énergétique - Le Pavillon Saint-Basile de l’école Jacques Rocheleau | E194: 1 | F194: 16-Montérégie | G194: Saint-Basile-le-Grand | H194: AC | I194: SU | J194: 5963.17 | K194: 2016-08-16 | L194: 2019-02-28 | M194: 198861 | Q194: 16355.5 | Y194: 16355.5 | Z194: 5963.17 | AB194: QC-Québec | AC194: Oui | AD194: 20 | AE194: 4.770533 | AF194: 52.3375805 | AG194: Non | AH194: Oui | AI194: 0 | AK194: 0 | AM194: 0 | AO194: 0 | AQ194: 0 | BF194: =IF(SUM(AI194:BD194)=0,0,(Y194/SUMIF($AI$20:$BD$20,"1",AI194:BD194))) -> 0
A195: 171 | B195: Implantation | C195: Commission scolaire des Patriotes | D195: Conversion du système de chauffage au mazout léger vers un système électrique - École du Parchemin | E195: 1 | F195: 16-Montérégie | G195: Carignan | H195: AC | I195: SU | J195: 61798.82 | K195: 2016-08-16 | L195: 2018-12-10 | M195: 152430 | Q195: 15449.7 | R195: 30899.4 | S195: 15449.72 | Y195: 46349.1 | Z195: 61798.82 | AB195: QC-Québec | AC195: Oui | AD195: 20 | AE195: 0 | AF195: 49.4390586 | AG195: Non | AH195: Oui | AI195: 0 | AK195: 0 | AM195: 0 | AO195: 0 | AQ195: 0 | BF195: =IF(SUM(AI195:BD195)=0,0,(Y195/SUMIF($AI$20:$BD$20,"1",AI195:BD195))) -> 0
A196: 172 | B196: Implantation | C196: Commission scolaire des Patriotes | D196: Conversion du système de chauffage au mazout léger vers un système électrique - École François-Williams | E196: 1 | F196: 16-Montérégie | G196: Saint-Amable | H196: AC | I196: SU | J196: 98089.11 | K196: 2016-08-16 | L196: 2018-12-10 | M196: 159407 | Q196: 24522.28 | R196: 49044.56 | S196: 24522.27 | Y196: 73566.84 | Z196: 98089.11 | AB196: QC-Québec | AC196: Oui | AD196: 20 | AE196: 0 | AF196: 78.4712886 | AG196: Non | AH196: Oui | AI196: 0 | AK196: 0 | AM196: 0 | AO196: 0 | AQ196: 0 | BF196: =IF(SUM(AI196:BD196)=0,0,(Y196/SUMIF($AI$20:$BD$20,"1",AI196:BD196))) -> 0
A197: 173 | B197: Implantation | C197: Commission scolaire des Patriotes | D197: Conversion du système de chauffage au mazout léger vers un système électrique - École Georges-Étienne-Cartier | E197: 1 | F197: 16-Montérégie | G197: Saint-Antoine-sur-Richelieu | H197: AC | I197: SU | J197: 76192.61 | K197: 2016-08-16 | L197: 2019-01-30 | M197: 155871 | Q197: 19048.15 | S197: 57144.46 | Y197: 57144.45 | Z197: 76192.61 | AB197: QC-Québec | AC197: Oui | AD197: 20 | AE197: 0 | AF197: 60.9540893 | AG197: Non | AH197: Oui | AI197: 0 | AK197: 0 | AM197: 0 | AO197: 0 | AQ197: 0 | BF197: =IF(SUM(AI197:BD197)=0,0,(Y197/SUMIF($AI$20:$BD$20,"1",AI197:BD197))) -> 0
A198: 174 | B198: Implantation | C198: Commission scolaire des Patriotes | D198: Projet d'efficacité énergétique - École d'éducation internationale | E198: 1 | F198: 16-Montérégie | G198: McMasterville | H198: AC | I198: SU | J198: 210125.64 | K198: 2016-08-16 | L198: 2019-02-28 | M198: 425432 | Q198: 52531.41 | S198: 157594.23 | Y198: 52531.41 | Z198: 210125.64 | AB198: QC-Québec | AC198: Oui | AD198: 20 | AE198: 178.296267 | AF198: 0 | AG198: Non | AH198: Oui | AI198: 0 | AK198: 0 | AM198: 0 | AO198: 0 | AQ198: 0 | BF198: =IF(SUM(AI198:BD198)=0,0,(Y198/SUMIF($AI$20:$BD$20,"1",AI198:BD198))) -> 0
A199: 175 | B199: Implantation | C199: Fabrique Saint-André-Avellin | D199: Remplacement des chaudières au mazout léger par des systèmes électriques zonés | E199: 1 | F199: 07-Outaouais | G199: Saint-André-Avellin | H199: TE | I199: SU | J199: 84386.84 | K199: 2016-02-24 | L199: 2017-11-27 | M199: 117447.02 | Q199: 63290.13 | R199: 21096.71 | Y199: 84386.84 | Z199: 84386.84 | AB199: QC-Québec | AC199: Oui | AD199: 25 | AE199: 0 | AF199: 67.5592147 | AG199: Non | AH199: Oui | AI199: 0 | AK199: 0 | AM199: 0 | AO199: 23.6272664 | AQ199: 67.1900387 | BF199: =IF(SUM(AI199:BD199)=0,0,(Y199/SUMIF($AI$20:$BD$20,"1",AI199:BD199))) -> 
A200: 176 | B200: Implantation | C200: La Fabrique du Très-Saint-Sacrement | D200: Remplacement du système de chauffage au gaz naturel par des systèmes électriques zonés | E200: 1 | F200: 03-Capitale-Nationale | G200: Québec | H200: AN | I200: SU | J200: - $ | K200: 2016-03-16 | L200: 2018-10-01 | M200: 240450 | Z200: - $ | AB200: QC-Québec | AC200: Oui | AD200: 25 | AE200: 0 | AF200: 199.828556 | AG200: Non | AH200: Oui | BF200: =IF(SUM(AI200:BD200)=0,0,(Y200/SUMIF($AI$20:$BD$20,"1",AI200:BD200))) -> 0
A201: 177 | B201: Implantation | C201: CIUSSS Capitale-Nationale | D201: Projet d'efficacité énergétique | E201: 1 | F201: 03-Capitale-Nationale | G201: Québec | H201: AN | I201: SU | J201: - $ | L201: 2018-02-01 | M201: 655711 | Z201: - $ | AB201: QC-Québec | AC201: Oui | AD201: 20 | AE201: 122.362969 | AF201: 0 | AG201: Non | AH201: Oui | BF201: =IF(SUM(AI201:BD201)=0,0,(Y201/SUMIF($AI$20:$BD$20,"1",AI201:BD201))) -> 0
A202: 178 | B202: Analyse | C202: OBNL Le Colibri Lac-Mégantic | D202: Étude de faisabilité - Le Colibri - Lac Mégantic | E202: 1 | F202: 05-Estrie | G202: Lac-Mégantic | H202: RF | I202: SU | J202: - $ | L202: 2016-03-31 | M202: 69900 | Z202: - $ | AB202: QC-Québec | AC202: Oui | AD202: 0 | AE202: 0 | AF202: 0 | AG202: Non | AH202: Oui | BF202: =IF(SUM(AI202:BD202)=0,0,(Y202/SUMIF($AI$20:$BD$20,"1",AI202:BD202))) -> 0
A203: 179 | B203: Implantation | C203: L'Éternel SPA, SA | D203: Ajout de chauffage électrique pour l'eau des spa | E203: 1 | F203: 02-Saguenay─Lac-Saint-Jean | G203: Saint-David-de-Falardeau | H203: AN | I203: SU | J203: - $ | K203: 2016-05-16 | L203: 2017-06-15 | M203: 39800 | Z203: - $ | AB203: QC-Québec | AC203: Oui | AD203: 20 | AE203: 0 | AF203: 48.7261986 | AG203: Non | AH203: Oui | BF203: =IF(SUM(AI203:BD203)=0,0,(Y203/SUMIF($AI$20:$BD$20,"1",AI203:BD203))) -> 0
A204: 180 | B204: Implantation | C204: Timbercreek Asset Management inc. | D204: Efficacité énergétique au 1212, rue Des Pins | E204: 1 | F204: 06-Montréal | G204: Montréal | H204: AC | I204: SU | J204: 505431.41 | K204: 2016-10-25 | L204: 2017-04-01 | M204: 1033200 | Q204: 252715.7 | R204: 252715.71 | Y204: 505431.41 | Z204: 505431.41 | AB204: QC-Québec | AC204: Oui | AD204: 37 | AE204: 404.34513 | AF204: 0 | AG204: Non | AH204: Oui | AI204: 0 | AK204: 0 | AM204: 0 | AO204: 0 | AQ204: 0 | BF204: =IF(SUM(AI204:BD204)=0,0,(Y204/SUMIF($AI$20:$BD$20,"1",AI204:BD204))) -> 0
A205: 181 | B205: Implantation | C205: CIUSSS Capitale-Nationale | D205: Projet d’efficacité énergétique du CSSS Source Nord | E205: 1 | F205: 03-Capitale-Nationale | G205: Québec | H205: AC | I205: SU | J205: 329179.82 | K205: 2017-01-13 | L205: 2018-08-01 | M205: 675546 | Q205: 82294.96 | R205: 164589.92 | S205: 82294.94 | Y205: 246884.88 | Z205: 329179.82 | AB205: QC-Québec | AC205: Oui | AD205: 20 | AE205: 280.428089 | AF205: 0 | AG205: Non | AH205: Oui | AI205: 0 | AK205: 0 | AM205: 0 | AO205: 0 | AQ205: 0 | BF205: =IF(SUM(AI205:BD205)=0,0,(Y205/SUMIF($AI$20:$BD$20,"1",AI205:BD205))) -> 0
A206: 182 | B206: Analyse | C206: Groupe de la Côte inc. | D206: Analyse de la production de vapeur de la buanderie industrielle | E206: 1 | F206: 09-Côte-Nord | G206: Baie-Comeau | H206: AN | I206: SU | J206: - $ | K206: 2016-01-22 | L206: 2016-03-15 | M206: 4500 | Z206: - $ | AB206: QC-Québec | AC206: Oui | AD206: 0 | AE206: 0 | AF206: 0 | AG206: Non | AH206: Oui | BF206: =IF(SUM(AI206:BD206)=0,0,(Y206/SUMIF($AI$20:$BD$20,"1",AI206:BD206))) -> 0
A207: 183 | B207: Implantation | C207: CIUSSS Capitale-Nationale | D207: Projet d’efficacité énergétique – Hôpital Chauveau | E207: 1 | F207: 03-Capitale-Nationale | G207: Québec | H207: AC | I207: SU | J207: 108631.53 | K207: 2016-10-17 | L207: 2018-11-01 | M207: 247227.84 | Q207: 27157.88 | R207: 42315.76 | S207: 39157.89 | Y207: 69473.64 | Z207: 108631.53 | AB207: QC-Québec | AC207: Oui | AD207: 20 | AE207: 39.6919743 | AF207: 47.213251 | AG207: Non | AH207: Oui | AI207: 0 | AK207: 0 | AM207: 0 | AO207: 0 | AQ207: 0 | BF207: =IF(SUM(AI207:BD207)=0,0,(Y207/SUMIF($AI$20:$BD$20,"1",AI207:BD207))) -> 0
A208: 184 | B208: Implantation | C208: Ivanhoé Cambridge inc. | D208: Remise au point des systèmes mécaniques de Place Ste-Foy | E208: 1 | F208: 03-Capitale-Nationale | G208: Québec | H208: AN | I208: SU | J208: - $ | L208: 2016-07-01 | M208: - $ | Z208: - $ | AB208: QC-Québec | AC208: Oui | AD208: 0 | AE208: 0 | AF208: 0 | AG208: Non | AH208: Oui | BF208: =IF(SUM(AI208:BD208)=0,0,(Y208/SUMIF($AI$20:$BD$20,"1",AI208:BD208))) -> 0
A209: 185 | B209: Implantation | C209: 9307-1306 Québec inc. | D209: Projet d'efficacité énergétique - Manoir Manrese | E209: 1 | F209: 03-Capitale-Nationale | G209: Québec | H209: TE | I209: SU | J209: 64604.83 | K209: 2016-03-23 | L209: 2016-04-01 | M209: 136226.27 | Q209: 64604.84 | Y209: 64604.84 | Z209: 64604.83 | AB209: QC-Québec | AC209: Oui | AD209: 13.321558 | AE209: 88.5958754 | AF209: 0 | AG209: Non | AH209: Oui | AI209: 0 | AK209: 0 | AM209: 0 | AO209: 21.5438058 | AQ209: 88.1117449 | BF209: =IF(SUM(AI209:BD209)=0,0,(Y209/SUMIF($AI$20:$BD$20,"1",AI209:BD209))) -> 
A210: 186 | B210: Implantation | C210: Le STJC inc. | D210: C5525-STJC Implantation du produit écoAZUR | E210: 1 | F210: 12-Chaudière-Appalaches | G210: Lévis | H210: AC | I210: SU | J210: 24517.7 | K210: 2016-06-09 | L210: 2018-02-28 | M210: 44000 | R210: 24517.7 | Y210: 18388.26 | Z210: 24517.7 | AB210: QC-Québec | AC210: Oui | AD210: 10 | AE210: 20.6743255 | AF210: 0 | AG210: Non | AH210: Oui | AI210: 0 | AK210: 0 | AM210: 0 | AO210: 0 | AQ210: 0 | BF210: =IF(SUM(AI210:BD210)=0,0,(Y210/SUMIF($AI$20:$BD$20,"1",AI210:BD210))) -> 0
A211: 187 | B211: Implantation | C211: Restaurant Normandin (2014) inc. | D211: C5527-SHER Implantation du produit écoAZUR | E211: 1 | F211: 05-Estrie | G211: Sherbrooke | H211: AC | I211: SU | J211: 34648.21 | K211: 2016-06-09 | L211: 2016-04-01 | M211: 62200 | Q211: 34648.21 | Y211: 34648.21 | Z211: 32383.03 | AB211: QC-Québec | AC211: Oui | AD211: 10 | AE211: 35.2927772 | AF211: 0 | AG211: Non | AH211: Oui | AI211: 0 | AK211: 0 | AM211: 0 | AO211: 0 | AQ211: 0 | BF211: =IF(SUM(AI211:BD211)=0,0,(Y211/SUMIF($AI$20:$BD$20,"1",AI211:BD211))) -> 0
A212: 188 | B212: Implantation | C212: Le Port-Jolien (2014) inc. | D212: C5528-SJPJ Implantation du produit écoAZUR | E212: 1 | F212: 12-Chaudière-Appalaches | G212: Saint-Jean-Port-Joli | H212: AC | I212: SU | J212: 40069.85 | K212: 2016-06-09 | L212: 2016-04-01 | M212: 67000 | Q212: 40069.85 | Y212: 40069.85 | Z212: 40069.85 | AB212: QC-Québec | AC212: Oui | AD212: 10 | AE212: 32.0558802 | AF212: 0 | AG212: Non | AH212: Oui | AI212: 0 | AK212: 0 | AM212: 0 | AO212: 0 | AQ212: 0 | BF212: =IF(SUM(AI212:BD212)=0,0,(Y212/SUMIF($AI$20:$BD$20,"1",AI212:BD212))) -> 0
A213: 189 | B213: Implantation | C213: Restaurant La rochette (2014) inc. | D213: C5533-ROCHE Implantation du produit écoAZUR | E213: 1 | F213: 03-Capitale-Nationale | G213: Québec | H213: AC | I213: SU | J213: 37736.92 | K213: 2016-06-09 | L213: 2016-04-01 | M213: 67000 | Q213: 37736.92 | Y213: 37736.92 | Z213: 37736.92 | AB213: QC-Québec | AC213: Oui | AD213: 10 | AE213: 32.0558802 | AF213: 0 | AG213: Non | AH213: Oui | AI213: 0 | AK213: 0 | AM213: 0 | AO213: 0 | AQ213: 0 | BF213: =IF(SUM(AI213:BD213)=0,0,(Y213/SUMIF($AI$20:$BD$20,"1",AI213:BD213))) -> 0
A214: 190 | B214: Implantation | C214: Restaurant Lévisien inc. | D214: C5534-LVIS Implantation du produit écoAZUR | E214: 1 | F214: 12-Chaudière-Appalaches | G214: Lévis | H214: AC | I214: SU | J214: 40069.85 | K214: 2016-06-09 | L214: 2016-04-01 | M214: 67000 | Q214: 40069.85 | Y214: 40069.85 | Z214: 40069.85 | AB214: QC-Québec | AC214: Oui | AD214: 10 | AE214: 32.0558802 | AF214: 0 | AG214: Non | AH214: Oui | AI214: 0 | AK214: 0 | AM214: 0 | AO214: 0 | AQ214: 0 | BF214: =IF(SUM(AI214:BD214)=0,0,(Y214/SUMIF($AI$20:$BD$20,"1",AI214:BD214))) -> 0
... 462 more rows

Sheet indicateurs quantitatifs
B2: PLAN D'ACTION 2013-2020 SUR LES CHANGEMENTS CLIMATIQUES | I2: =IF(Utilitaire!C10=0,"Les nouveaux indicateurs inscrits devront être soumis pour approbation au Conseil de gestion du Fonds vert.",IF(Utilitaire!C10=1,"Le premier indicateur présenté dans cette page a été convenu au préalable par des annexes 3 ou 4 de l’entente administrative. Les nouveaux indicateurs inscrits devront être soumis pour approbation au Conseil de gestion du Fonds vert.","Les "&Utilitaire!C10&" premiers indicateurs présentés dans cette page ont été convenus au préalable par des annexes 3 ou 4 de l’entente administrative. Les nouveaux indicateurs inscrits devront être soumis pour approbation au Conseil de gestion du Fonds vert.")) -> Les 6 premiers indicateurs présentés dans cette page ont été convenus au préalable par des annexes 3 ou 4 de l’entente administrative. Les nouveaux indicateurs inscrits devront être soumis pour approbation au Conseil de gestion du Fonds vert.
B3: ="Action " & Accueil!D58 -> Action en cours
B4: =Accueil!D55 -> 20.1 | D4: =Accueil!E55 -> Conversion et efficacité énergétique dans les bâtiments commerciaux et institutionnels (Écoperformance)
B5: Ministère porteur: | E5: =Accueil!$D$66 -> TEQ
B6: Indicateurs quantitatifs
B22: SECTION 9 - INDICATEURS DE PERFORMANCE QUANTITATIFS | I22: =IF(OR(AND(MONTH(#REF!)>6,YEAR(#REF!)=VALUE(MID(I23,1,4))),YEAR(#REF!)>VALUE(MID(I23,1,4))),"Réel","Prévu") ->  | J22: =IF(OR(AND(MONTH(#REF!)>6,YEAR(#REF!)=VALUE(MID(J23,1,4))),YEAR(#REF!)>VALUE(MID(J23,1,4))),"Réel","Prévu") ->  | K22: =IF(OR(AND(MONTH(#REF!)>6,YEAR(#REF!)=VALUE(MID(K23,1,4))),YEAR(#REF!)>VALUE(MID(K23,1,4))),"Réel","Prévu") ->  | L22: =IF(OR(AND(MONTH(#REF!)>6,YEAR(#REF!)=VALUE(MID(L23,1,4))),YEAR(#REF!)>VALUE(MID(L23,1,4))),"Réel","Prévu") ->  | M22: =IF(OR(AND(MONTH(#REF!)>6,YEAR(#REF!)=VALUE(MID(M23,1,4))),YEAR(#REF!)>VALUE(MID(M23,1,4))),"Réel","Prévu") ->  | N22: =IF(OR(AND(MONTH(#REF!)>6,YEAR(#REF!)=VALUE(MID(N23,1,4))),YEAR(#REF!)>VALUE(MID(N23,1,4))),"Réel","Prévu") ->  | O22: =IF(OR(AND(MONTH(#REF!)>6,YEAR(#REF!)=VALUE(MID(O23,1,4))),YEAR(#REF!)>VALUE(MID(O23,1,4))),"Réel","Prévu") ->  | P22: =IF(OR(AND(MONTH(#REF!)>6,YEAR(#REF!)=VALUE(MID(P23,1,4))),YEAR(#REF!)>VALUE(MID(P23,1,4))),"Réel","Prévu") ->  | Q22: =IF(OR(AND(MONTH(#REF!)>6,YEAR(#REF!)=VALUE(MID(Q23,1,4))),YEAR(#REF!)>VALUE(MID(Q23,1,4))),"Réel","Prévu") ->  | R22: =IF(OR(AND(MONTH(#REF!)>6,YEAR(#REF!)=VALUE(MID(R23,1,4))),YEAR(#REF!)>VALUE(MID(R23,1,4))),"Réel","Prévu") ->  | S22: =IF(OR(AND(MONTH(#REF!)>6,YEAR(#REF!)=VALUE(MID(S23,1,4))),YEAR(#REF!)>VALUE(MID(S23,1,4))),"Réel","Prévu") ->  | T22: =MONTH(#REF!) -> 
B23: ANNÉE PRÉVUE D'ATTEINTE DE LA CIBLE | C23: CIBLE | D23: UNITÉ DE MESURE | E23: DESCRIPTION DE L'INDICATEUR | G23: TYPE D'INDICATEUR | I23: 2013-2014 | J23: 2014-2015 | K23: 2015-2016 | L23: 2016-2017 | M23: 2017-2018 | N23: 2018-2019 | O23: 2019-2020 | P23: 2020-2021 | Q23: 2021-2022 | R23: 2022-2023 | S23: 2023-2024 | T23: RÉSULTAT À COMPARER AVEC LA CIBLE
I24: Réel | J24: Réel | K24: Réel | L24: Réel | M24: Réel | N24: Réel | O24: Réel | P24: Réel | Q24: Réel | R24: Réel | S24: Réel
A25: 1 | B25: 2020 | D25: emplois | E25: Emplois créés (aucune cible) | T25: 1964
A26: 2 | B26: 2020 | D26: dossiers | E26: Nombre de dossiers acceptés (aucune cible) | T26: 304
A27: 3 | B27: 2020 | C27: 51000 | D27: t CO2 | E27: Réduction annuelle des émissions de gaz à effet de serre (GES) | G27: minimum à atteindre | I27: 4.19 | J27: 1225.14 | K27: 9079.63 | L27: 15718.73 | M27: 19390.41 | T27: 19390.41
A28: 4 | B28: 2020 | C28: 51000 | D28: t CO2 | E28: Réduction annuelle des émissions de gaz à effet de serre (GES) pour les dossiers en cours | G28: minimum à atteindre | T28: 30812.57
A29: 5 | B29: 2020 | C29: 51000 | D29: t CO2 | E29: Réduction annuelle des émissions de gaz à effet de serre (GES) pour les dossiers en traitement | G29: minimum à atteindre | T29: 8852.197
A30: 6 | B30: 2020 | D30: $/tonne | E30: VAN/t
A31: 7
A32: 8
A33: 9
A34: 10
A35: 11
A36: 12
A37: 13
A38: 14
A39: 15
A40: 16
A41: 17
A42: 18
A43: 19
A44: 20
A45: tot | AR45: FALSE

Sheet Commentaires
B2: =Utilitaire!E8 -> PLAN D'ACTION 2013-2020 SUR LES CHANGEMENTS CLIMATIQUES | T2: COF
B3: ="Action " & Accueil!D58 -> Action en cours | T3: frais
B4: =Accueil!D55 -> 20.1 | C4: =Accueil!E55 -> Conversion et efficacité énergétique dans les bâtiments commerciaux et institutionnels (Écoperformance) | T4: ETC
B5: Ministère porteur: | D5: =Accueil!$D$66 -> TEQ | T5: détail des projets
B6: Commentaires | T6: détail des projets (GES)
T7: bilan GES
T8: Indicateurs
T9: Toutes-Autre
T12: 2013-2014
T13: 2014-2015
T14: 2015-2016
T15: 2016-2017
T16: 2017-2018
T23: 2018-2019
B24: COMMENTAIRES | M24: Section concernée | O24: Année | Q24: Exercice | T24: 2019-2020
T25: 2020-2021
T26: 2021-2022
T27: 2022-2023
T28: 2023-2024
T32: juin
T33: décembre
